{"text_format":"1","workbook":"xlsx","n_sheets":11,"sheets":["EOP Order Form","ProductList","Aqua Aid","COMAND","Bio Mas","GV Water Soluble","Brandt","Grigg Brothers","Emerald Isle","Performance Nutritution","Select Source"],"not_rendered":{"charts":0,"images":7,"macros":1,"external_links":0,"defined_names":2,"comments":0,"pivot_tables":0},"unopened":[],"bounds":{"document_bytes":16777216,"sheet_cells":100000,"rows_first":2000,"rows_last":500,"rows_between":2000,"halvings":0,"cell_chars":16384,"cell_head_chars":4096},"cells_cut":0,"cells_raw":0,"read":"whole","date_system":"1900"}

{"sheet":"EOP Order Form","index":0,"n_rows":53,"n_cols":54,"rows_kept":53,"cut":false,"hidden":false,"merged":[[46,6,46,7],[47,6,47,7],[1,6,2,8],[3,7,3,8],[4,7,4,8],[5,7,5,8],[6,7,6,8],[7,7,7,8],[8,7,8,8],[9,7,9,8],[10,7,10,8],[11,7,11,8],[12,7,12,8],[5,1,5,2],[6,1,6,2],[7,1,7,2],[8,1,8,2],[45,6,45,7]]}
[]
[null,null,null,null,null,null,"Customer Information"]
[]
[null,null,null,null,null,null,"PO :"]
[null,null,null,null,null,null,"Name :"]
[null,"Golf Ventures",null,null,null,null,"Company Name :"]
[null,"5385 Gateway Blvd STE 12",null,null,null,null," Email :"]
[null,"Lakeland FL 33811",null,null,null,null,"Phone :"]
[null,"863-665-5800 | (866) 853-4653",null,null,null,null," Address 1 :"]
[null,null,null,null,null,null,"Address 2 :"]
[null,"Order No. :",null,null,null,null,"City :"]
[null,null,null,null,null,null,"State :"]
[null,"Order Date :",null,null,null,null,"Zip :"]
[]
[null,"Quantity","Vendor","Item","Description","Package Size","Price / UOM","UOM","Total",null,null,null,null,null,null,null,null,null,null,null,null,null,null,null,null,null,null,null,null,null,null,null,null,null,null,null,null,null,null,null,null,null,null,null,null,null,null,null,null,null,null,null,null,"Product ID"]
[null,null,null,{"$f":"IFERROR(INDEX(INDIRECT(\"'\"&$C16&\"'!\"&\"$B$9:$B$500\"),MATCH(RIGHT($BB16,10),INDIRECT(\"'\"&$C16&\"'!\"&\"$A$9:$A$500\"),0),),\"\")","v":""},{"$f":"IFERROR(INDEX(INDIRECT(\"'\"&$C16&\"'!\"&\"$D$9:$D$500\"),MATCH(RIGHT($BB16,10),INDIRECT(\"'\"&$C16&\"'!\"&\"$A$9:$A$500\"),0),),\"\")","v":""},{"$f":"IFERROR(INDEX(INDIRECT(\"'\"&$C16&\"'!\"&\"$C$9:$C$500\"),MATCH(RIGHT($BB16,10),INDIRECT(\"'\"&$C16&\"'!\"&\"$A$9:$A$500\"),0),),\"\")","v":""},{"$f":"IFERROR(INDEX(INDIRECT(\"'\"&$C16&\"'!\"&\"$E$9:$E$500\"),MATCH(RIGHT($BB16,10),INDIRECT(\"'\"&$C16&\"'!\"&\"$A$9:$A$500\"),0),),\"\")","v":""},{"$f":"IFERROR(INDEX(INDIRECT(\"'\"&$C16&\"'!\"&\"$F$9:$F$500\"),MATCH(RIGHT($BB16,10),INDIRECT(\"'\"&$C16&\"'!\"&\"$A$9:$A$500\"),0),),\"\")","v":""},{"$f":"IF(B16=\"\",\"\",(G16*B16))","v":""}]
[null,null,null,{"$f":"IFERROR(INDEX(INDIRECT(\"'\"&$C17&\"'!\"&\"$B$9:$B$500\"),MATCH(RIGHT($BB17,10),INDIRECT(\"'\"&$C17&\"'!\"&\"$A$9:$A$500\"),0),),\"\")","v":""},{"$f":"IFERROR(INDEX(INDIRECT(\"'\"&$C17&\"'!\"&\"$D$9:$D$500\"),MATCH(RIGHT($BB17,10),INDIRECT(\"'\"&$C17&\"'!\"&\"$A$9:$A$500\"),0),),\"\")","v":""},{"$f":"IFERROR(INDEX(INDIRECT(\"'\"&$C17&\"'!\"&\"$C$9:$C$500\"),MATCH(RIGHT($BB17,10),INDIRECT(\"'\"&$C17&\"'!\"&\"$A$9:$A$500\"),0),),\"\")","v":""},{"$f":"IFERROR(INDEX(INDIRECT(\"'\"&$C17&\"'!\"&\"$E$9:$E$500\"),MATCH(RIGHT($BB17,10),INDIRECT(\"'\"&$C17&\"'!\"&\"$A$9:$A$500\"),0),),\"\")","v":""},{"$f":"IFERROR(INDEX(INDIRECT(\"'\"&$C17&\"'!\"&\"$F$9:$F$500\"),MATCH(RIGHT($BB17,10),INDIRECT(\"'\"&$C17&\"'!\"&\"$A$9:$A$500\"),0),),\"\")","v":""},{"$f":"IF(B17=\"\",\"\",(G17*B17))","v":""}]
[null,null,null,{"$f":"IFERROR(INDEX(INDIRECT(\"'\"&$C18&\"'!\"&\"$B$9:$B$500\"),MATCH(RIGHT($BB18,10),INDIRECT(\"'\"&$C18&\"'!\"&\"$A$9:$A$500\"),0),),\"\")","v":""},{"$f":"IFERROR(INDEX(INDIRECT(\"'\"&$C18&\"'!\"&\"$D$9:$D$500\"),MATCH(RIGHT($BB18,10),INDIRECT(\"'\"&$C18&\"'!\"&\"$A$9:$A$500\"),0),),\"\")","v":""},{"$f":"IFERROR(INDEX(INDIRECT(\"'\"&$C18&\"'!\"&\"$C$9:$C$500\"),MATCH(RIGHT($BB18,10),INDIRECT(\"'\"&$C18&\"'!\"&\"$A$9:$A$500\"),0),),\"\")","v":""},{"$f":"IFERROR(INDEX(INDIRECT(\"'\"&$C18&\"'!\"&\"$E$9:$E$500\"),MATCH(RIGHT($BB18,10),INDIRECT(\"'\"&$C18&\"'!\"&\"$A$9:$A$500\"),0),),\"\")","v":""},{"$f":"IFERROR(INDEX(INDIRECT(\"'\"&$C18&\"'!\"&\"$F$9:$F$500\"),MATCH(RIGHT($BB18,10),INDIRECT(\"'\"&$C18&\"'!\"&\"$A$9:$A$500\"),0),),\"\")","v":""},{"$f":"IF(B18=\"\",\"\",(G18*B18))","v":""}]
[null,null,null,{"$f":"IFERROR(INDEX(INDIRECT(\"'\"&$C19&\"'!\"&\"$B$9:$B$500\"),MATCH(RIGHT($BB19,10),INDIRECT(\"'\"&$C19&\"'!\"&\"$A$9:$A$500\"),0),),\"\")","v":""},{"$f":"IFERROR(INDEX(INDIRECT(\"'\"&$C19&\"'!\"&\"$D$9:$D$500\"),MATCH(RIGHT($BB19,10),INDIRECT(\"'\"&$C19&\"'!\"&\"$A$9:$A$500\"),0),),\"\")","v":""},{"$f":"IFERROR(INDEX(INDIRECT(\"'\"&$C19&\"'!\"&\"$C$9:$C$500\"),MATCH(RIGHT($BB19,10),INDIRECT(\"'\"&$C19&\"'!\"&\"$A$9:$A$500\"),0),),\"\")","v":""},{"$f":"IFERROR(INDEX(INDIRECT(\"'\"&$C19&\"'!\"&\"$E$9:$E$500\"),MATCH(RIGHT($BB19,10),INDIRECT(\"'\"&$C19&\"'!\"&\"$A$9:$A$500\"),0),),\"\")","v":""},{"$f":"IFERROR(INDEX(INDIRECT(\"'\"&$C19&\"'!\"&\"$F$9:$F$500\"),MATCH(RIGHT($BB19,10),INDIRECT(\"'\"&$C19&\"'!\"&\"$A$9:$A$500\"),0),),\"\")","v":""},{"$f":"IF(B19=\"\",\"\",(G19*B19))","v":""}]
[null,null,null,{"$f":"IFERROR(INDEX(INDIRECT(\"'\"&$C20&\"'!\"&\"$B$9:$B$500\"),MATCH(RIGHT($BB20,10),INDIRECT(\"'\"&$C20&\"'!\"&\"$A$9:$A$500\"),0),),\"\")","v":""},{"$f":"IFERROR(INDEX(INDIRECT(\"'\"&$C20&\"'!\"&\"$D$9:$D$500\"),MATCH(RIGHT($BB20,10),INDIRECT(\"'\"&$C20&\"'!\"&\"$A$9:$A$500\"),0),),\"\")","v":""},{"$f":"IFERROR(INDEX(INDIRECT(\"'\"&$C20&\"'!\"&\"$C$9:$C$500\"),MATCH(RIGHT($BB20,10),INDIRECT(\"'\"&$C20&\"'!\"&\"$A$9:$A$500\"),0),),\"\")","v":""},{"$f":"IFERROR(INDEX(INDIRECT(\"'\"&$C20&\"'!\"&\"$E$9:$E$500\"),MATCH(RIGHT($BB20,10),INDIRECT(\"'\"&$C20&\"'!\"&\"$A$9:$A$500\"),0),),\"\")","v":""},{"$f":"IFERROR(INDEX(INDIRECT(\"'\"&$C20&\"'!\"&\"$F$9:$F$500\"),MATCH(RIGHT($BB20,10),INDIRECT(\"'\"&$C20&\"'!\"&\"$A$9:$A$500\"),0),),\"\")","v":""},{"$f":"IF(B20=\"\",\"\",(G20*B20))","v":""}]
[null,null,null,{"$f":"IFERROR(INDEX(INDIRECT(\"'\"&$C21&\"'!\"&\"$B$9:$B$500\"),MATCH(RIGHT($BB21,10),INDIRECT(\"'\"&$C21&\"'!\"&\"$A$9:$A$500\"),0),),\"\")","v":""},{"$f":"IFERROR(INDEX(INDIRECT(\"'\"&$C21&\"'!\"&\"$D$9:$D$500\"),MATCH(RIGHT($BB21,10),INDIRECT(\"'\"&$C21&\"'!\"&\"$A$9:$A$500\"),0),),\"\")","v":""},{"$f":"IFERROR(INDEX(INDIRECT(\"'\"&$C21&\"'!\"&\"$C$9:$C$500\"),MATCH(RIGHT($BB21,10),INDIRECT(\"'\"&$C21&\"'!\"&\"$A$9:$A$500\"),0),),\"\")","v":""},{"$f":"IFERROR(INDEX(INDIRECT(\"'\"&$C21&\"'!\"&\"$E$9:$E$500\"),MATCH(RIGHT($BB21,10),INDIRECT(\"'\"&$C21&\"'!\"&\"$A$9:$A$500\"),0),),\"\")","v":""},{"$f":"IFERROR(INDEX(INDIRECT(\"'\"&$C21&\"'!\"&\"$F$9:$F$500\"),MATCH(RIGHT($BB21,10),INDIRECT(\"'\"&$C21&\"'!\"&\"$A$9:$A$500\"),0),),\"\")","v":""},{"$f":"IF(B21=\"\",\"\",(G21*B21))","v":""}]
[null,null,null,{"$f":"IFERROR(INDEX(INDIRECT(\"'\"&$C22&\"'!\"&\"$B$9:$B$500\"),MATCH(RIGHT($BB22,10),INDIRECT(\"'\"&$C22&\"'!\"&\"$A$9:$A$500\"),0),),\"\")","v":""},{"$f":"IFERROR(INDEX(INDIRECT(\"'\"&$C22&\"'!\"&\"$D$9:$D$500\"),MATCH(RIGHT($BB22,10),INDIRECT(\"'\"&$C22&\"'!\"&\"$A$9:$A$500\"),0),),\"\")","v":""},{"$f":"IFERROR(INDEX(INDIRECT(\"'\"&$C22&\"'!\"&\"$C$9:$C$500\"),MATCH(RIGHT($BB22,10),INDIRECT(\"'\"&$C22&\"'!\"&\"$A$9:$A$500\"),0),),\"\")","v":""},{"$f":"IFERROR(INDEX(INDIRECT(\"'\"&$C22&\"'!\"&\"$E$9:$E$500\"),MATCH(RIGHT($BB22,10),INDIRECT(\"'\"&$C22&\"'!\"&\"$A$9:$A$500\"),0),),\"\")","v":""},{"$f":"IFERROR(INDEX(INDIRECT(\"'\"&$C22&\"'!\"&\"$F$9:$F$500\"),MATCH(RIGHT($BB22,10),INDIRECT(\"'\"&$C22&\"'!\"&\"$A$9:$A$500\"),0),),\"\")","v":""},{"$f":"IF(B22=\"\",\"\",(G22*B22))","v":""}]
[null,null,null,{"$f":"IFERROR(INDEX(INDIRECT(\"'\"&$C23&\"'!\"&\"$B$9:$B$500\"),MATCH(RIGHT($BB23,10),INDIRECT(\"'\"&$C23&\"'!\"&\"$A$9:$A$500\"),0),),\"\")","v":""},{"$f":"IFERROR(INDEX(INDIRECT(\"'\"&$C23&\"'!\"&\"$D$9:$D$500\"),MATCH(RIGHT($BB23,10),INDIRECT(\"'\"&$C23&\"'!\"&\"$A$9:$A$500\"),0),),\"\")","v":""},{"$f":"IFERROR(INDEX(INDIRECT(\"'\"&$C23&\"'!\"&\"$C$9:$C$500\"),MATCH(RIGHT($BB23,10),INDIRECT(\"'\"&$C23&\"'!\"&\"$A$9:$A$500\"),0),),\"\")","v":""},{"$f":"IFERROR(INDEX(INDIRECT(\"'\"&$C23&\"'!\"&\"$E$9:$E$500\"),MATCH(RIGHT($BB23,10),INDIRECT(\"'\"&$C23&\"'!\"&\"$A$9:$A$500\"),0),),\"\")","v":""},{"$f":"IFERROR(INDEX(INDIRECT(\"'\"&$C23&\"'!\"&\"$F$9:$F$500\"),MATCH(RIGHT($BB23,10),INDIRECT(\"'\"&$C23&\"'!\"&\"$A$9:$A$500\"),0),),\"\")","v":""},{"$f":"IF(B23=\"\",\"\",(G23*B23))","v":""}]
[null,null,null,{"$f":"IFERROR(INDEX(INDIRECT(\"'\"&$C24&\"'!\"&\"$B$9:$B$500\"),MATCH(RIGHT($BB24,10),INDIRECT(\"'\"&$C24&\"'!\"&\"$A$9:$A$500\"),0),),\"\")","v":""},{"$f":"IFERROR(INDEX(INDIRECT(\"'\"&$C24&\"'!\"&\"$D$9:$D$500\"),MATCH(RIGHT($BB24,10),INDIRECT(\"'\"&$C24&\"'!\"&\"$A$9:$A$500\"),0),),\"\")","v":""},{"$f":"IFERROR(INDEX(INDIRECT(\"'\"&$C24&\"'!\"&\"$C$9:$C$500\"),MATCH(RIGHT($BB24,10),INDIRECT(\"'\"&$C24&\"'!\"&\"$A$9:$A$500\"),0),),\"\")","v":""},{"$f":"IFERROR(INDEX(INDIRECT(\"'\"&$C24&\"'!\"&\"$E$9:$E$500\"),MATCH(RIGHT($BB24,10),INDIRECT(\"'\"&$C24&\"'!\"&\"$A$9:$A$500\"),0),),\"\")","v":""},{"$f":"IFERROR(INDEX(INDIRECT(\"'\"&$C24&\"'!\"&\"$F$9:$F$500\"),MATCH(RIGHT($BB24,10),INDIRECT(\"'\"&$C24&\"'!\"&\"$A$9:$A$500\"),0),),\"\")","v":""},{"$f":"IF(B24=\"\",\"\",(G24*B24))","v":""}]
[null,null,null,{"$f":"IFERROR(INDEX(INDIRECT(\"'\"&$C25&\"'!\"&\"$B$9:$B$500\"),MATCH(RIGHT($BB25,10),INDIRECT(\"'\"&$C25&\"'!\"&\"$A$9:$A$500\"),0),),\"\")","v":""},{"$f":"IFERROR(INDEX(INDIRECT(\"'\"&$C25&\"'!\"&\"$D$9:$D$500\"),MATCH(RIGHT($BB25,10),INDIRECT(\"'\"&$C25&\"'!\"&\"$A$9:$A$500\"),0),),\"\")","v":""},{"$f":"IFERROR(INDEX(INDIRECT(\"'\"&$C25&\"'!\"&\"$C$9:$C$500\"),MATCH(RIGHT($BB25,10),INDIRECT(\"'\"&$C25&\"'!\"&\"$A$9:$A$500\"),0),),\"\")","v":""},{"$f":"IFERROR(INDEX(INDIRECT(\"'\"&$C25&\"'!\"&\"$E$9:$E$500\"),MATCH(RIGHT($BB25,10),INDIRECT(\"'\"&$C25&\"'!\"&\"$A$9:$A$500\"),0),),\"\")","v":""},{"$f":"IFERROR(INDEX(INDIRECT(\"'\"&$C25&\"'!\"&\"$F$9:$F$500\"),MATCH(RIGHT($BB25,10),INDIRECT(\"'\"&$C25&\"'!\"&\"$A$9:$A$500\"),0),),\"\")","v":""},{"$f":"IF(B25=\"\",\"\",(G25*B25))","v":""}]
[null,null,null,{"$f":"IFERROR(INDEX(INDIRECT(\"'\"&$C26&\"'!\"&\"$B$9:$B$500\"),MATCH(RIGHT($BB26,10),INDIRECT(\"'\"&$C26&\"'!\"&\"$A$9:$A$500\"),0),),\"\")","v":""},{"$f":"IFERROR(INDEX(INDIRECT(\"'\"&$C26&\"'!\"&\"$D$9:$D$500\"),MATCH(RIGHT($BB26,10),INDIRECT(\"'\"&$C26&\"'!\"&\"$A$9:$A$500\"),0),),\"\")","v":""},{"$f":"IFERROR(INDEX(INDIRECT(\"'\"&$C26&\"'!\"&\"$C$9:$C$500\"),MATCH(RIGHT($BB26,10),INDIRECT(\"'\"&$C26&\"'!\"&\"$A$9:$A$500\"),0),),\"\")","v":""},{"$f":"IFERROR(INDEX(INDIRECT(\"'\"&$C26&\"'!\"&\"$E$9:$E$500\"),MATCH(RIGHT($BB26,10),INDIRECT(\"'\"&$C26&\"'!\"&\"$A$9:$A$500\"),0),),\"\")","v":""},{"$f":"IFERROR(INDEX(INDIRECT(\"'\"&$C26&\"'!\"&\"$F$9:$F$500\"),MATCH(RIGHT($BB26,10),INDIRECT(\"'\"&$C26&\"'!\"&\"$A$9:$A$500\"),0),),\"\")","v":""},{"$f":"IF(B26=\"\",\"\",(G26*B26))","v":""}]
[null,null,null,{"$f":"IFERROR(INDEX(INDIRECT(\"'\"&$C27&\"'!\"&\"$B$9:$B$500\"),MATCH(RIGHT($BB27,10),INDIRECT(\"'\"&$C27&\"'!\"&\"$A$9:$A$500\"),0),),\"\")","v":""},{"$f":"IFERROR(INDEX(INDIRECT(\"'\"&$C27&\"'!\"&\"$D$9:$D$500\"),MATCH(RIGHT($BB27,10),INDIRECT(\"'\"&$C27&\"'!\"&\"$A$9:$A$500\"),0),),\"\")","v":""},{"$f":"IFERROR(INDEX(INDIRECT(\"'\"&$C27&\"'!\"&\"$C$9:$C$500\"),MATCH(RIGHT($BB27,10),INDIRECT(\"'\"&$C27&\"'!\"&\"$A$9:$A$500\"),0),),\"\")","v":""},{"$f":"IFERROR(INDEX(INDIRECT(\"'\"&$C27&\"'!\"&\"$E$9:$E$500\"),MATCH(RIGHT($BB27,10),INDIRECT(\"'\"&$C27&\"'!\"&\"$A$9:$A$500\"),0),),\"\")","v":""},{"$f":"IFERROR(INDEX(INDIRECT(\"'\"&$C27&\"'!\"&\"$F$9:$F$500\"),MATCH(RIGHT($BB27,10),INDIRECT(\"'\"&$C27&\"'!\"&\"$A$9:$A$500\"),0),),\"\")","v":""},{"$f":"IF(B27=\"\",\"\",(G27*B27))","v":""}]
[null,null,null,{"$f":"IFERROR(INDEX(INDIRECT(\"'\"&$C28&\"'!\"&\"$B$9:$B$500\"),MATCH(RIGHT($BB28,10),INDIRECT(\"'\"&$C28&\"'!\"&\"$A$9:$A$500\"),0),),\"\")","v":""},{"$f":"IFERROR(INDEX(INDIRECT(\"'\"&$C28&\"'!\"&\"$D$9:$D$500\"),MATCH(RIGHT($BB28,10),INDIRECT(\"'\"&$C28&\"'!\"&\"$A$9:$A$500\"),0),),\"\")","v":""},{"$f":"IFERROR(INDEX(INDIRECT(\"'\"&$C28&\"'!\"&\"$C$9:$C$500\"),MATCH(RIGHT($BB28,10),INDIRECT(\"'\"&$C28&\"'!\"&\"$A$9:$A$500\"),0),),\"\")","v":""},{"$f":"IFERROR(INDEX(INDIRECT(\"'\"&$C28&\"'!\"&\"$E$9:$E$500\"),MATCH(RIGHT($BB28,10),INDIRECT(\"'\"&$C28&\"'!\"&\"$A$9:$A$500\"),0),),\"\")","v":""},{"$f":"IFERROR(INDEX(INDIRECT(\"'\"&$C28&\"'!\"&\"$F$9:$F$500\"),MATCH(RIGHT($BB28,10),INDIRECT(\"'\"&$C28&\"'!\"&\"$A$9:$A$500\"),0),),\"\")","v":""},{"$f":"IF(B28=\"\",\"\",(G28*B28))","v":""}]
[null,null,null,{"$f":"IFERROR(INDEX(INDIRECT(\"'\"&$C29&\"'!\"&\"$B$9:$B$500\"),MATCH(RIGHT($BB29,10),INDIRECT(\"'\"&$C29&\"'!\"&\"$A$9:$A$500\"),0),),\"\")","v":""},{"$f":"IFERROR(INDEX(INDIRECT(\"'\"&$C29&\"'!\"&\"$D$9:$D$500\"),MATCH(RIGHT($BB29,10),INDIRECT(\"'\"&$C29&\"'!\"&\"$A$9:$A$500\"),0),),\"\")","v":""},{"$f":"IFERROR(INDEX(INDIRECT(\"'\"&$C29&\"'!\"&\"$C$9:$C$500\"),MATCH(RIGHT($BB29,10),INDIRECT(\"'\"&$C29&\"'!\"&\"$A$9:$A$500\"),0),),\"\")","v":""},{"$f":"IFERROR(INDEX(INDIRECT(\"'\"&$C29&\"'!\"&\"$E$9:$E$500\"),MATCH(RIGHT($BB29,10),INDIRECT(\"'\"&$C29&\"'!\"&\"$A$9:$A$500\"),0),),\"\")","v":""},{"$f":"IFERROR(INDEX(INDIRECT(\"'\"&$C29&\"'!\"&\"$F$9:$F$500\"),MATCH(RIGHT($BB29,10),INDIRECT(\"'\"&$C29&\"'!\"&\"$A$9:$A$500\"),0),),\"\")","v":""},{"$f":"IF(B29=\"\",\"\",(G29*B29))","v":""}]
[null,null,null,{"$f":"IFERROR(INDEX(INDIRECT(\"'\"&$C30&\"'!\"&\"$B$9:$B$500\"),MATCH(RIGHT($BB30,10),INDIRECT(\"'\"&$C30&\"'!\"&\"$A$9:$A$500\"),0),),\"\")","v":""},{"$f":"IFERROR(INDEX(INDIRECT(\"'\"&$C30&\"'!\"&\"$D$9:$D$500\"),MATCH(RIGHT($BB30,10),INDIRECT(\"'\"&$C30&\"'!\"&\"$A$9:$A$500\"),0),),\"\")","v":""},{"$f":"IFERROR(INDEX(INDIRECT(\"'\"&$C30&\"'!\"&\"$C$9:$C$500\"),MATCH(RIGHT($BB30,10),INDIRECT(\"'\"&$C30&\"'!\"&\"$A$9:$A$500\"),0),),\"\")","v":""},{"$f":"IFERROR(INDEX(INDIRECT(\"'\"&$C30&\"'!\"&\"$E$9:$E$500\"),MATCH(RIGHT($BB30,10),INDIRECT(\"'\"&$C30&\"'!\"&\"$A$9:$A$500\"),0),),\"\")","v":""},{"$f":"IFERROR(INDEX(INDIRECT(\"'\"&$C30&\"'!\"&\"$F$9:$F$500\"),MATCH(RIGHT($BB30,10),INDIRECT(\"'\"&$C30&\"'!\"&\"$A$9:$A$500\"),0),),\"\")","v":""},{"$f":"IF(B30=\"\",\"\",(G30*B30))","v":""}]
[null,null,null,{"$f":"IFERROR(INDEX(INDIRECT(\"'\"&$C31&\"'!\"&\"$B$9:$B$500\"),MATCH(RIGHT($BB31,10),INDIRECT(\"'\"&$C31&\"'!\"&\"$A$9:$A$500\"),0),),\"\")","v":""},{"$f":"IFERROR(INDEX(INDIRECT(\"'\"&$C31&\"'!\"&\"$D$9:$D$500\"),MATCH(RIGHT($BB31,10),INDIRECT(\"'\"&$C31&\"'!\"&\"$A$9:$A$500\"),0),),\"\")","v":""},{"$f":"IFERROR(INDEX(INDIRECT(\"'\"&$C31&\"'!\"&\"$C$9:$C$500\"),MATCH(RIGHT($BB31,10),INDIRECT(\"'\"&$C31&\"'!\"&\"$A$9:$A$500\"),0),),\"\")","v":""},{"$f":"IFERROR(INDEX(INDIRECT(\"'\"&$C31&\"'!\"&\"$E$9:$E$500\"),MATCH(RIGHT($BB31,10),INDIRECT(\"'\"&$C31&\"'!\"&\"$A$9:$A$500\"),0),),\"\")","v":""},{"$f":"IFERROR(INDEX(INDIRECT(\"'\"&$C31&\"'!\"&\"$F$9:$F$500\"),MATCH(RIGHT($BB31,10),INDIRECT(\"'\"&$C31&\"'!\"&\"$A$9:$A$500\"),0),),\"\")","v":""},{"$f":"IF(B31=\"\",\"\",(G31*B31))","v":""}]
[null,null,null,{"$f":"IFERROR(INDEX(INDIRECT(\"'\"&$C32&\"'!\"&\"$B$9:$B$500\"),MATCH(RIGHT($BB32,10),INDIRECT(\"'\"&$C32&\"'!\"&\"$A$9:$A$500\"),0),),\"\")","v":""},{"$f":"IFERROR(INDEX(INDIRECT(\"'\"&$C32&\"'!\"&\"$D$9:$D$500\"),MATCH(RIGHT($BB32,10),INDIRECT(\"'\"&$C32&\"'!\"&\"$A$9:$A$500\"),0),),\"\")","v":""},{"$f":"IFERROR(INDEX(INDIRECT(\"'\"&$C32&\"'!\"&\"$C$9:$C$500\"),MATCH(RIGHT($BB32,10),INDIRECT(\"'\"&$C32&\"'!\"&\"$A$9:$A$500\"),0),),\"\")","v":""},{"$f":"IFERROR(INDEX(INDIRECT(\"'\"&$C32&\"'!\"&\"$E$9:$E$500\"),MATCH(RIGHT($BB32,10),INDIRECT(\"'\"&$C32&\"'!\"&\"$A$9:$A$500\"),0),),\"\")","v":""},{"$f":"IFERROR(INDEX(INDIRECT(\"'\"&$C32&\"'!\"&\"$F$9:$F$500\"),MATCH(RIGHT($BB32,10),INDIRECT(\"'\"&$C32&\"'!\"&\"$A$9:$A$500\"),0),),\"\")","v":""},{"$f":"IF(B32=\"\",\"\",(G32*B32))","v":""}]
[null,null,null,{"$f":"IFERROR(INDEX(INDIRECT(\"'\"&$C33&\"'!\"&\"$B$9:$B$500\"),MATCH(RIGHT($BB33,10),INDIRECT(\"'\"&$C33&\"'!\"&\"$A$9:$A$500\"),0),),\"\")","v":""},{"$f":"IFERROR(INDEX(INDIRECT(\"'\"&$C33&\"'!\"&\"$D$9:$D$500\"),MATCH(RIGHT($BB33,10),INDIRECT(\"'\"&$C33&\"'!\"&\"$A$9:$A$500\"),0),),\"\")","v":""},{"$f":"IFERROR(INDEX(INDIRECT(\"'\"&$C33&\"'!\"&\"$C$9:$C$500\"),MATCH(RIGHT($BB33,10),INDIRECT(\"'\"&$C33&\"'!\"&\"$A$9:$A$500\"),0),),\"\")","v":""},{"$f":"IFERROR(INDEX(INDIRECT(\"'\"&$C33&\"'!\"&\"$E$9:$E$500\"),MATCH(RIGHT($BB33,10),INDIRECT(\"'\"&$C33&\"'!\"&\"$A$9:$A$500\"),0),),\"\")","v":""},{"$f":"IFERROR(INDEX(INDIRECT(\"'\"&$C33&\"'!\"&\"$F$9:$F$500\"),MATCH(RIGHT($BB33,10),INDIRECT(\"'\"&$C33&\"'!\"&\"$A$9:$A$500\"),0),),\"\")","v":""},{"$f":"IF(B33=\"\",\"\",(G33*B33))","v":""}]
[null,null,null,{"$f":"IFERROR(INDEX(INDIRECT(\"'\"&$C34&\"'!\"&\"$B$9:$B$500\"),MATCH(RIGHT($BB34,10),INDIRECT(\"'\"&$C34&\"'!\"&\"$A$9:$A$500\"),0),),\"\")","v":""},{"$f":"IFERROR(INDEX(INDIRECT(\"'\"&$C34&\"'!\"&\"$D$9:$D$500\"),MATCH(RIGHT($BB34,10),INDIRECT(\"'\"&$C34&\"'!\"&\"$A$9:$A$500\"),0),),\"\")","v":""},{"$f":"IFERROR(INDEX(INDIRECT(\"'\"&$C34&\"'!\"&\"$C$9:$C$500\"),MATCH(RIGHT($BB34,10),INDIRECT(\"'\"&$C34&\"'!\"&\"$A$9:$A$500\"),0),),\"\")","v":""},{"$f":"IFERROR(INDEX(INDIRECT(\"'\"&$C34&\"'!\"&\"$E$9:$E$500\"),MATCH(RIGHT($BB34,10),INDIRECT(\"'\"&$C34&\"'!\"&\"$A$9:$A$500\"),0),),\"\")","v":""},{"$f":"IFERROR(INDEX(INDIRECT(\"'\"&$C34&\"'!\"&\"$F$9:$F$500\"),MATCH(RIGHT($BB34,10),INDIRECT(\"'\"&$C34&\"'!\"&\"$A$9:$A$500\"),0),),\"\")","v":""},{"$f":"IF(B34=\"\",\"\",(G34*B34))","v":""}]
[null,null,null,{"$f":"IFERROR(INDEX(INDIRECT(\"'\"&$C35&\"'!\"&\"$B$9:$B$500\"),MATCH(RIGHT($BB35,10),INDIRECT(\"'\"&$C35&\"'!\"&\"$A$9:$A$500\"),0),),\"\")","v":""},{"$f":"IFERROR(INDEX(INDIRECT(\"'\"&$C35&\"'!\"&\"$D$9:$D$500\"),MATCH(RIGHT($BB35,10),INDIRECT(\"'\"&$C35&\"'!\"&\"$A$9:$A$500\"),0),),\"\")","v":""},{"$f":"IFERROR(INDEX(INDIRECT(\"'\"&$C35&\"'!\"&\"$C$9:$C$500\"),MATCH(RIGHT($BB35,10),INDIRECT(\"'\"&$C35&\"'!\"&\"$A$9:$A$500\"),0),),\"\")","v":""},{"$f":"IFERROR(INDEX(INDIRECT(\"'\"&$C35&\"'!\"&\"$E$9:$E$500\"),MATCH(RIGHT($BB35,10),INDIRECT(\"'\"&$C35&\"'!\"&\"$A$9:$A$500\"),0),),\"\")","v":""},{"$f":"IFERROR(INDEX(INDIRECT(\"'\"&$C35&\"'!\"&\"$F$9:$F$500\"),MATCH(RIGHT($BB35,10),INDIRECT(\"'\"&$C35&\"'!\"&\"$A$9:$A$500\"),0),),\"\")","v":""},{"$f":"IF(B35=\"\",\"\",(G35*B35))","v":""}]
[null,null,null,{"$f":"IFERROR(INDEX(INDIRECT(\"'\"&$C36&\"'!\"&\"$B$9:$B$500\"),MATCH(RIGHT($BB36,10),INDIRECT(\"'\"&$C36&\"'!\"&\"$A$9:$A$500\"),0),),\"\")","v":""},{"$f":"IFERROR(INDEX(INDIRECT(\"'\"&$C36&\"'!\"&\"$D$9:$D$500\"),MATCH(RIGHT($BB36,10),INDIRECT(\"'\"&$C36&\"'!\"&\"$A$9:$A$500\"),0),),\"\")","v":""},{"$f":"IFERROR(INDEX(INDIRECT(\"'\"&$C36&\"'!\"&\"$C$9:$C$500\"),MATCH(RIGHT($BB36,10),INDIRECT(\"'\"&$C36&\"'!\"&\"$A$9:$A$500\"),0),),\"\")","v":""},{"$f":"IFERROR(INDEX(INDIRECT(\"'\"&$C36&\"'!\"&\"$E$9:$E$500\"),MATCH(RIGHT($BB36,10),INDIRECT(\"'\"&$C36&\"'!\"&\"$A$9:$A$500\"),0),),\"\")","v":""},{"$f":"IFERROR(INDEX(INDIRECT(\"'\"&$C36&\"'!\"&\"$F$9:$F$500\"),MATCH(RIGHT($BB36,10),INDIRECT(\"'\"&$C36&\"'!\"&\"$A$9:$A$500\"),0),),\"\")","v":""},{"$f":"IF(B36=\"\",\"\",(G36*B36))","v":""}]
[null,null,null,{"$f":"IFERROR(INDEX(INDIRECT(\"'\"&$C37&\"'!\"&\"$B$9:$B$500\"),MATCH(RIGHT($BB37,10),INDIRECT(\"'\"&$C37&\"'!\"&\"$A$9:$A$500\"),0),),\"\")","v":""},{"$f":"IFERROR(INDEX(INDIRECT(\"'\"&$C37&\"'!\"&\"$D$9:$D$500\"),MATCH(RIGHT($BB37,10),INDIRECT(\"'\"&$C37&\"'!\"&\"$A$9:$A$500\"),0),),\"\")","v":""},{"$f":"IFERROR(INDEX(INDIRECT(\"'\"&$C37&\"'!\"&\"$C$9:$C$500\"),MATCH(RIGHT($BB37,10),INDIRECT(\"'\"&$C37&\"'!\"&\"$A$9:$A$500\"),0),),\"\")","v":""},{"$f":"IFERROR(INDEX(INDIRECT(\"'\"&$C37&\"'!\"&\"$E$9:$E$500\"),MATCH(RIGHT($BB37,10),INDIRECT(\"'\"&$C37&\"'!\"&\"$A$9:$A$500\"),0),),\"\")","v":""},{"$f":"IFERROR(INDEX(INDIRECT(\"'\"&$C37&\"'!\"&\"$F$9:$F$500\"),MATCH(RIGHT($BB37,10),INDIRECT(\"'\"&$C37&\"'!\"&\"$A$9:$A$500\"),0),),\"\")","v":""},{"$f":"IF(B37=\"\",\"\",(G37*B37))","v":""}]
[null,null,null,{"$f":"IFERROR(INDEX(INDIRECT(\"'\"&$C38&\"'!\"&\"$B$9:$B$500\"),MATCH(RIGHT($BB38,10),INDIRECT(\"'\"&$C38&\"'!\"&\"$A$9:$A$500\"),0),),\"\")","v":""},{"$f":"IFERROR(INDEX(INDIRECT(\"'\"&$C38&\"'!\"&\"$D$9:$D$500\"),MATCH(RIGHT($BB38,10),INDIRECT(\"'\"&$C38&\"'!\"&\"$A$9:$A$500\"),0),),\"\")","v":""},{"$f":"IFERROR(INDEX(INDIRECT(\"'\"&$C38&\"'!\"&\"$C$9:$C$500\"),MATCH(RIGHT($BB38,10),INDIRECT(\"'\"&$C38&\"'!\"&\"$A$9:$A$500\"),0),),\"\")","v":""},{"$f":"IFERROR(INDEX(INDIRECT(\"'\"&$C38&\"'!\"&\"$E$9:$E$500\"),MATCH(RIGHT($BB38,10),INDIRECT(\"'\"&$C38&\"'!\"&\"$A$9:$A$500\"),0),),\"\")","v":""},{"$f":"IFERROR(INDEX(INDIRECT(\"'\"&$C38&\"'!\"&\"$F$9:$F$500\"),MATCH(RIGHT($BB38,10),INDIRECT(\"'\"&$C38&\"'!\"&\"$A$9:$A$500\"),0),),\"\")","v":""},{"$f":"IF(B38=\"\",\"\",(G38*B38))","v":""}]
[null,null,null,{"$f":"IFERROR(INDEX(INDIRECT(\"'\"&$C39&\"'!\"&\"$B$9:$B$500\"),MATCH(RIGHT($BB39,10),INDIRECT(\"'\"&$C39&\"'!\"&\"$A$9:$A$500\"),0),),\"\")","v":""},{"$f":"IFERROR(INDEX(INDIRECT(\"'\"&$C39&\"'!\"&\"$D$9:$D$500\"),MATCH(RIGHT($BB39,10),INDIRECT(\"'\"&$C39&\"'!\"&\"$A$9:$A$500\"),0),),\"\")","v":""},{"$f":"IFERROR(INDEX(INDIRECT(\"'\"&$C39&\"'!\"&\"$C$9:$C$500\"),MATCH(RIGHT($BB39,10),INDIRECT(\"'\"&$C39&\"'!\"&\"$A$9:$A$500\"),0),),\"\")","v":""},{"$f":"IFERROR(INDEX(INDIRECT(\"'\"&$C39&\"'!\"&\"$E$9:$E$500\"),MATCH(RIGHT($BB39,10),INDIRECT(\"'\"&$C39&\"'!\"&\"$A$9:$A$500\"),0),),\"\")","v":""},{"$f":"IFERROR(INDEX(INDIRECT(\"'\"&$C39&\"'!\"&\"$F$9:$F$500\"),MATCH(RIGHT($BB39,10),INDIRECT(\"'\"&$C39&\"'!\"&\"$A$9:$A$500\"),0),),\"\")","v":""},{"$f":"IF(B39=\"\",\"\",(G39*B39))","v":""}]
[null,null,null,{"$f":"IFERROR(INDEX(INDIRECT(\"'\"&$C40&\"'!\"&\"$B$9:$B$500\"),MATCH(RIGHT($BB40,10),INDIRECT(\"'\"&$C40&\"'!\"&\"$A$9:$A$500\"),0),),\"\")","v":""},{"$f":"IFERROR(INDEX(INDIRECT(\"'\"&$C40&\"'!\"&\"$D$9:$D$500\"),MATCH(RIGHT($BB40,10),INDIRECT(\"'\"&$C40&\"'!\"&\"$A$9:$A$500\"),0),),\"\")","v":""},{"$f":"IFERROR(INDEX(INDIRECT(\"'\"&$C40&\"'!\"&\"$C$9:$C$500\"),MATCH(RIGHT($BB40,10),INDIRECT(\"'\"&$C40&\"'!\"&\"$A$9:$A$500\"),0),),\"\")","v":""},{"$f":"IFERROR(INDEX(INDIRECT(\"'\"&$C40&\"'!\"&\"$E$9:$E$500\"),MATCH(RIGHT($BB40,10),INDIRECT(\"'\"&$C40&\"'!\"&\"$A$9:$A$500\"),0),),\"\")","v":""},{"$f":"IFERROR(INDEX(INDIRECT(\"'\"&$C40&\"'!\"&\"$F$9:$F$500\"),MATCH(RIGHT($BB40,10),INDIRECT(\"'\"&$C40&\"'!\"&\"$A$9:$A$500\"),0),),\"\")","v":""},{"$f":"IF(B40=\"\",\"\",(G40*B40))","v":""}]
[null,null,null,{"$f":"IFERROR(INDEX(INDIRECT(\"'\"&$C41&\"'!\"&\"$B$9:$B$500\"),MATCH(RIGHT($BB41,10),INDIRECT(\"'\"&$C41&\"'!\"&\"$A$9:$A$500\"),0),),\"\")","v":""},{"$f":"IFERROR(INDEX(INDIRECT(\"'\"&$C41&\"'!\"&\"$D$9:$D$500\"),MATCH(RIGHT($BB41,10),INDIRECT(\"'\"&$C41&\"'!\"&\"$A$9:$A$500\"),0),),\"\")","v":""},{"$f":"IFERROR(INDEX(INDIRECT(\"'\"&$C41&\"'!\"&\"$C$9:$C$500\"),MATCH(RIGHT($BB41,10),INDIRECT(\"'\"&$C41&\"'!\"&\"$A$9:$A$500\"),0),),\"\")","v":""},{"$f":"IFERROR(INDEX(INDIRECT(\"'\"&$C41&\"'!\"&\"$E$9:$E$500\"),MATCH(RIGHT($BB41,10),INDIRECT(\"'\"&$C41&\"'!\"&\"$A$9:$A$500\"),0),),\"\")","v":""},{"$f":"IFERROR(INDEX(INDIRECT(\"'\"&$C41&\"'!\"&\"$F$9:$F$500\"),MATCH(RIGHT($BB41,10),INDIRECT(\"'\"&$C41&\"'!\"&\"$A$9:$A$500\"),0),),\"\")","v":""},{"$f":"IF(B41=\"\",\"\",(G41*B41))","v":""}]
[null,null,null,{"$f":"IFERROR(INDEX(INDIRECT(\"'\"&$C42&\"'!\"&\"$B$9:$B$500\"),MATCH(RIGHT($BB42,10),INDIRECT(\"'\"&$C42&\"'!\"&\"$A$9:$A$500\"),0),),\"\")","v":""},{"$f":"IFERROR(INDEX(INDIRECT(\"'\"&$C42&\"'!\"&\"$D$9:$D$500\"),MATCH(RIGHT($BB42,10),INDIRECT(\"'\"&$C42&\"'!\"&\"$A$9:$A$500\"),0),),\"\")","v":""},{"$f":"IFERROR(INDEX(INDIRECT(\"'\"&$C42&\"'!\"&\"$C$9:$C$500\"),MATCH(RIGHT($BB42,10),INDIRECT(\"'\"&$C42&\"'!\"&\"$A$9:$A$500\"),0),),\"\")","v":""},{"$f":"IFERROR(INDEX(INDIRECT(\"'\"&$C42&\"'!\"&\"$E$9:$E$500\"),MATCH(RIGHT($BB42,10),INDIRECT(\"'\"&$C42&\"'!\"&\"$A$9:$A$500\"),0),),\"\")","v":""},{"$f":"IFERROR(INDEX(INDIRECT(\"'\"&$C42&\"'!\"&\"$F$9:$F$500\"),MATCH(RIGHT($BB42,10),INDIRECT(\"'\"&$C42&\"'!\"&\"$A$9:$A$500\"),0),),\"\")","v":""},{"$f":"IF(B42=\"\",\"\",(G42*B42))","v":""}]
[null,null,null,{"$f":"IFERROR(INDEX(INDIRECT(\"'\"&$C43&\"'!\"&\"$B$9:$B$500\"),MATCH(RIGHT($BB43,10),INDIRECT(\"'\"&$C43&\"'!\"&\"$A$9:$A$500\"),0),),\"\")","v":""},{"$f":"IFERROR(INDEX(INDIRECT(\"'\"&$C43&\"'!\"&\"$D$9:$D$500\"),MATCH(RIGHT($BB43,10),INDIRECT(\"'\"&$C43&\"'!\"&\"$A$9:$A$500\"),0),),\"\")","v":""},{"$f":"IFERROR(INDEX(INDIRECT(\"'\"&$C43&\"'!\"&\"$C$9:$C$500\"),MATCH(RIGHT($BB43,10),INDIRECT(\"'\"&$C43&\"'!\"&\"$A$9:$A$500\"),0),),\"\")","v":""},{"$f":"IFERROR(INDEX(INDIRECT(\"'\"&$C43&\"'!\"&\"$E$9:$E$500\"),MATCH(RIGHT($BB43,10),INDIRECT(\"'\"&$C43&\"'!\"&\"$A$9:$A$500\"),0),),\"\")","v":""},{"$f":"IFERROR(INDEX(INDIRECT(\"'\"&$C43&\"'!\"&\"$F$9:$F$500\"),MATCH(RIGHT($BB43,10),INDIRECT(\"'\"&$C43&\"'!\"&\"$A$9:$A$500\"),0),),\"\")","v":""},{"$f":"IF(B43=\"\",\"\",(G43*B43))","v":""}]
[null,null,null,{"$f":"IFERROR(INDEX(INDIRECT(\"'\"&$C44&\"'!\"&\"$B$9:$B$500\"),MATCH(RIGHT($BB44,10),INDIRECT(\"'\"&$C44&\"'!\"&\"$A$9:$A$500\"),0),),\"\")","v":""},{"$f":"IFERROR(INDEX(INDIRECT(\"'\"&$C44&\"'!\"&\"$D$9:$D$500\"),MATCH(RIGHT($BB44,10),INDIRECT(\"'\"&$C44&\"'!\"&\"$A$9:$A$500\"),0),),\"\")","v":""},{"$f":"IFERROR(INDEX(INDIRECT(\"'\"&$C44&\"'!\"&\"$C$9:$C$500\"),MATCH(RIGHT($BB44,10),INDIRECT(\"'\"&$C44&\"'!\"&\"$A$9:$A$500\"),0),),\"\")","v":""},{"$f":"IFERROR(INDEX(INDIRECT(\"'\"&$C44&\"'!\"&\"$E$9:$E$500\"),MATCH(RIGHT($BB44,10),INDIRECT(\"'\"&$C44&\"'!\"&\"$A$9:$A$500\"),0),),\"\")","v":""},{"$f":"IFERROR(INDEX(INDIRECT(\"'\"&$C44&\"'!\"&\"$F$9:$F$500\"),MATCH(RIGHT($BB44,10),INDIRECT(\"'\"&$C44&\"'!\"&\"$A$9:$A$500\"),0),),\"\")","v":""},{"$f":"IF(B44=\"\",\"\",(G44*B44))","v":""}]
[null,null,null,{"$f":"IFERROR(INDEX(INDIRECT(\"'\"&$C45&\"'!\"&\"$B$9:$B$500\"),MATCH(RIGHT($BB45,10),INDIRECT(\"'\"&$C45&\"'!\"&\"$A$9:$A$500\"),0),),\"\")","v":""},{"$f":"IFERROR(INDEX(INDIRECT(\"'\"&$C45&\"'!\"&\"$D$9:$D$500\"),MATCH(RIGHT($BB45,10),INDIRECT(\"'\"&$C45&\"'!\"&\"$A$9:$A$500\"),0),),\"\")","v":""},{"$f":"IFERROR(INDEX(INDIRECT(\"'\"&$C45&\"'!\"&\"$C$9:$C$500\"),MATCH(RIGHT($BB45,10),INDIRECT(\"'\"&$C45&\"'!\"&\"$A$9:$A$500\"),0),),\"\")","v":""},{"$f":"IFERROR(INDEX(INDIRECT(\"'\"&$C45&\"'!\"&\"$E$9:$E$500\"),MATCH(RIGHT($BB45,10),INDIRECT(\"'\"&$C45&\"'!\"&\"$A$9:$A$500\"),0),),\"\")","v":""},{"$f":"IFERROR(INDEX(INDIRECT(\"'\"&$C45&\"'!\"&\"$F$9:$F$500\"),MATCH(RIGHT($BB45,10),INDIRECT(\"'\"&$C45&\"'!\"&\"$A$9:$A$500\"),0),),\"\")","v":""},{"$f":"IF(B45=\"\",\"\",(G45*B45))","v":""}]
[null,null,null,null,null,null,"Total :",null,{"$f":"IF(COUNTA($I$16:$I$45)=0,\"\",SUM($I$16:$I$45))","v":0}]
[null,null,null,null,null,null,"EOP Refund :",null,{"$f":"IF(I46=\"\",\"\",IF(AND(I46>=7501,I46<=10000),(I46*5%),IF(AND(I46<=7500,I46>=3500),(I46*4%),IF(AND(I46<=3499,I46>=0),(I46*0),(I46*7%)))))","v":0}]
[null,null,null,null,null,null,"Rebate Level :",null,{"$f":"IF(OR(I46=\"\",I46=0),\"\",IF(AND(I46>=7501,I46<=10000),\"5%\",IF(AND(I46<=7500,I46>=3500),\"4%\",IF(AND(I46<=3499,I46>=0),\"NA\",\"7% (plus 2%)\"))))","v":""}]
[null,"DIRECTIONS"]
[null,"Customer Information - Fill in customer information box"]
[null,"Add EOP Items - Click Add Products button.   Select Vendor, then Item, and fill in Quantity.  Click Exit Button to return to EOP Form.",null,null,null,null,null,"Visit: "]
[null,"Delete Item - Clear or Delete Quantity and Vendor fields.  Then click Rearrange Items button. ",null,null,null,null,null,"https://www.golfventures.com/eop/"]
[null,"Clear Order Form - Click Clear Order Form button to delete all EOP rows",null,null,null,null,null," for program details, terms, and conditions"]

{"sheet":"ProductList","index":1,"n_rows":254,"n_cols":8,"rows_kept":254,"cut":false,"hidden":true,"merged":[]}
["Sheet Names","Product ID","Item","Description","Package Size","Product List","Price / UOM","UOM"]
["Aqua Aid","AA_WAP-001","Aqua-Aid Liquid","Aqua-Aid Wetting Agent (Penetrate)","2x2.5 Gallon","Aqua-Aid Liquid | Aqua-Aid Wetting Agent (Penetrate) | 2x2.5 Gallon                                                                                                     | AA_WAP-001",157,"Case"]
["Aqua Aid","AA_WAP-002","Aqua-Aid Pellets","Aqua-Aid Wetting Agent (Penetrate)","24, 8oz Pellets","Aqua-Aid Pellets | Aqua-Aid Wetting Agent (Penetrate) | 24, 8oz Pellets                                                                                                     | AA_WAP-002",225,"Box"]
["Aqua Aid","AA_WAP-003","Aquifer Liquid","Soil Surfactant  (Hydrate)","2x2.5 Gallon","Aquifer Liquid | Soil Surfactant  (Hydrate) | 2x2.5 Gallon                                                                                                     | AA_WAP-003",343,"Case"]
["Aqua Aid","AA_WAP-004","OARS PS Liquid","Penetrating Branched Soil Surfactant (Corrective)","2x2.5 Gallon","OARS PS Liquid | Penetrating Branched Soil Surfactant (Corrective) | 2x2.5 Gallon                                                                                                     | AA_WAP-004",462,"Case"]
["Aqua Aid","AA_WAP-005","OARS HS Liquid","Hydrating Branched Soil Surfactant (Corrective)","2x2.5 Gallon","OARS HS Liquid | Hydrating Branched Soil Surfactant (Corrective) | 2x2.5 Gallon                                                                                                     | AA_WAP-005",471,"Case"]
["Aqua Aid","AA_WAP-006","AQM Pellets","Wetting Agent w/Kelp Extract (Repair and Root)","12, 8oz Pellets","AQM Pellets | Wetting Agent w/Kelp Extract (Repair and Root) | 12, 8oz Pellets                                                                                                     | AA_WAP-006",274,"Box"]
["Bio Mas","GV_BIO-001","BioMAS G","Bio-Más G","25 lb Pail","BioMAS G | Bio-Más G | 25 lb Pail                                                                                                     | GV_BIO-001",800,"Pail"]
["Bio Mas","GV_BIO-002","BioMAS-G","Bio-Más G","25 lb Pail","BioMAS-G | Bio-Más G | 25 lb Pail                                                                                                     | GV_BIO-002",800,"Pail"]
["Brandt","BT_INV-001","Summer Success Program ","Nutritional Program for Greens","12 cases","Summer Success Program  | Nutritional Program for Greens | 12 cases                                                                                                     | BT_INV-001",1250,"Kit"]
["Brandt","BT_INV-002","Winter Success Program","Nutritional Program for Greens","13 cases","Winter Success Program | Nutritional Program for Greens | 13 cases                                                                                                     | BT_INV-002",1250,"Kit"]
["Brandt","BT_INV-003","Nematode Kit","8 month control for 3 acres","15 cases","Nematode Kit | 8 month control for 3 acres | 15 cases                                                                                                     | BT_INV-003",2500,"Kit"]
["Brandt","BT_INV-004","Brandt Noculate® Liquid","Microbial Inoculate plus Humic Acid and Kelp","2 x 2.5 gal","Brandt Noculate® Liquid | Microbial Inoculate plus Humic Acid and Kelp | 2 x 2.5 gal                                                                                                     | BT_INV-004",220,"case"]
["Brandt","BT_INV-005","Brandt Uptake 12","12% Humic substances (Leonardite)","2 x 2.5 gal","Brandt Uptake 12 | 12% Humic substances (Leonardite) | 2 x 2.5 gal                                                                                                     | BT_INV-005",90,"case"]
["Brandt","BT_INV-006","Brandt Uptake Advanced","8% Humic Acid Devired from Leonardite Ore","2 x 2.5 gal","Brandt Uptake Advanced | 8% Humic Acid Devired from Leonardite Ore | 2 x 2.5 gal                                                                                                     | BT_INV-006",129,"case"]
["Brandt","BT_INV-007","Brandt Uptake Starter","4% N, 1% P, 4% S","2 x 2.5 gal","Brandt Uptake Starter | 4% N, 1% P, 4% S | 2 x 2.5 gal                                                                                                     | BT_INV-007",122.5,"case"]
["Brandt","BT_INV-008","Leonardite Plus Fine","80% Humic Acid","44 lb bag","Leonardite Plus Fine | 80% Humic Acid | 44 lb bag                                                                                                     | BT_INV-008",1.1000000000000001,"lb"]
["Brandt","BT_INV-009","Leonardite Plus Granular (OMRI LISTED)","65% Humic Acid","50 lb bag","Leonardite Plus Granular (OMRI LISTED) | 65% Humic Acid | 50 lb bag                                                                                                     | BT_INV-009",1,"lb"]
["Brandt","BT_INV-010","Brandt Seaweed Max","Seaweed Extra With Humic Acid","2 x 2.5 gal","Brandt Seaweed Max | Seaweed Extra With Humic Acid | 2 x 2.5 gal                                                                                                     | BT_INV-010",270,"case"]
["Brandt","BT_INV-011","Brandt Humi-Cal","1.5% Ca, 6% Humic Acid, 2% Salicylic Acid","2 x 2.5 gal","Brandt Humi-Cal | 1.5% Ca, 6% Humic Acid, 2% Salicylic Acid | 2 x 2.5 gal                                                                                                     | BT_INV-011",110,"case"]
["Brandt","BT_INV-012","Brandt In-Cyte","3-12-0 plus Humic Acid, Seaweed Extract, Wetting Agent","2 x 2.5 gal","Brandt In-Cyte | 3-12-0 plus Humic Acid, Seaweed Extract, Wetting Agent | 2 x 2.5 gal                                                                                                     | BT_INV-012",100,"case"]
["Brandt","BT_INV-013","Brandt Parco Root XL","1.5% Mg, 4% S, 0.16% B, 3.5% Fe, 0.75% Mn, 0.003% Mo, 0.75% Zn","2 x 2.5 gal","Brandt Parco Root XL | 1.5% Mg, 4% S, 0.16% B, 3.5% Fe, 0.75% Mn, 0.003% Mo, 0.75% Zn | 2 x 2.5 gal                                                                                                     | BT_INV-013",116,"case"]
["Brandt","BT_INV-014","Brandt Foli-Boost","12-4-6  plus 1% S","2 x 2.5 gal","Brandt Foli-Boost | 12-4-6  plus 1% S | 2 x 2.5 gal                                                                                                     | BT_INV-014",91,"case"]
["Brandt","BT_INV-015","Brandt Plant Start 8-27-2","Starter Fertilizer, Seaweed Extract","2 x 2.5 gal","Brandt Plant Start 8-27-2 | Starter Fertilizer, Seaweed Extract | 2 x 2.5 gal                                                                                                     | BT_INV-015",170.5,"case"]
["Brandt","BT_INV-016","Brandt 30-K","30% K2O","2 x 2.5 gal","Brandt 30-K | 30% K2O | 2 x 2.5 gal                                                                                                     | BT_INV-016",144.5,"case"]
["Brandt","BT_INV-017","Brandt Converge 18-3-6","18% N, 3% P2O5, 6% K2O, 0.05% Cu, 0.1% Fe, 0.05% Mn, 0.05% Zn (50% SRN)","2 x 2.5 gal","Brandt Converge 18-3-6 | 18% N, 3% P2O5, 6% K2O, 0.05% Cu, 0.1% Fe, 0.05% Mn, 0.05% Zn (50% SRN) | 2 x 2.5 gal                                                                                                     | BT_INV-017",100,"case"]
["Brandt","BT_INV-018","Brandt Converge CRN","30% N (70% SRN)","2 x 2.5 gal","Brandt Converge CRN | 30% N (70% SRN) | 2 x 2.5 gal                                                                                                     | BT_INV-018",92.5,"case"]
["Brandt","BT_INV-019","Brandt Flash Dance","1% N, 5% Fe","2 x 2.5 gal","Brandt Flash Dance | 1% N, 5% Fe | 2 x 2.5 gal                                                                                                     | BT_INV-019",70,"case"]
["Brandt","BT_INV-020","Brandt Supreme Green","12% N, 0.25% Mg, 5% S, 6% Fe, 2% Mn","2 x 2.5 gal","Brandt Supreme Green | 12% N, 0.25% Mg, 5% S, 6% Fe, 2% Mn | 2 x 2.5 gal                                                                                                     | BT_INV-020",102,"case"]
["Brandt","BT_INV-021","Manni Plex Foli-Cal","5% N 10% Ca","2x2.5 Gallon","Manni Plex Foli-Cal | 5% N 10% Ca | 2x2.5 Gallon                                                                                                     | BT_INV-021",106.7,"Case"]
["Brandt","BT_INV-022","Manni-Plex Cal Mg","7% N, 5.3% Ca, 2.6% Mg","2x2.5 Gallon","Manni-Plex Cal Mg | 7% N, 5.3% Ca, 2.6% Mg | 2x2.5 Gallon                                                                                                     | BT_INV-022",95.6,"Case"]
["Brandt","BT_INV-023","Manni-Plex Cal Zn","6% N, 6% Ca, 35 Zn","2x2.5 Gallon","Manni-Plex Cal Zn | 6% N, 6% Ca, 35 Zn | 2x2.5 Gallon                                                                                                     | BT_INV-023",109.5,"Case"]
["Brandt","BT_INV-024","Manni-Plex Eagle","7% N, 14% K2O, 0.5% Mg, 0.5% Fe, 0.25% Mn","2x2.5 Gallon","Manni-Plex Eagle | 7% N, 14% K2O, 0.5% Mg, 0.5% Fe, 0.25% Mn | 2x2.5 Gallon                                                                                                     | BT_INV-024",150,"Case"]
["Brandt","BT_INV-025","Manni-Plex Fe","5% N, 5% Fe","2x2.5 Gallon","Manni-Plex Fe | 5% N, 5% Fe | 2x2.5 Gallon                                                                                                     | BT_INV-025",90,"Case"]
["Brandt","BT_INV-026","Manni-Plex Grow","12% N, 6% K2O, 0.25% Mg, 0.12% Cu, 1% Fe, 0.25% Mn, 0.25% Zn","2x2.5 Gallon","Manni-Plex Grow | 12% N, 6% K2O, 0.25% Mg, 0.12% Cu, 1% Fe, 0.25% Mn, 0.25% Zn | 2x2.5 Gallon                                                                                                     | BT_INV-026",140,"Case"]
["Brandt","BT_INV-027","Manni-Plex K","20% K20","2x2.5 Gallon","Manni-Plex K | 20% K20 | 2x2.5 Gallon                                                                                                     | BT_INV-027",119.1,"Case"]
["Brandt","BT_INV-028","Manni-Plex Mg","5% N, 4% Mg","2x2.5 Gallon","Manni-Plex Mg | 5% N, 4% Mg | 2x2.5 Gallon                                                                                                     | BT_INV-028",93.6,"Case"]
["Brandt","BT_INV-029","Manni-Plex Mn","7% N, 5% Mn","2x2.5 Gallon","Manni-Plex Mn | 7% N, 5% Mn | 2x2.5 Gallon                                                                                                     | BT_INV-029",99.3,"Case"]
["Brandt","BT_INV-030","Manni-Plex For Ornamentals","5% N, 2.5% B, 1% Fe, 2.5% Mn, 2% Zn","2x2.5 Gallon","Manni-Plex For Ornamentals | 5% N, 2.5% B, 1% Fe, 2.5% Mn, 2% Zn | 2x2.5 Gallon                                                                                                     | BT_INV-030",107.1,"Case"]
["Brandt","BT_INV-031","Manni-Plex Root Builder","3% N, 0.5% Mg, 0.2% B, 0.05% Cu, 0.9% Mn, 4.7% Zn","2x2.5 Gallon","Manni-Plex Root Builder | 3% N, 0.5% Mg, 0.2% B, 0.05% Cu, 0.9% Mn, 4.7% Zn | 2x2.5 Gallon                                                                                                     | BT_INV-031",140,"Case"]
["Brandt","BT_INV-032","Manni-Plex Total Turf","5% N, 1.2% Mg, 2.85% Fe, 0.45% Mn, 0.65% Zn","2x2.5 Gallon","Manni-Plex Total Turf | 5% N, 1.2% Mg, 2.85% Fe, 0.45% Mn, 0.65% Zn | 2x2.5 Gallon                                                                                                     | BT_INV-032",150,"Case"]
["Brandt","BT_INV-033","Manni-Plex Traffic","6% K2O plus 5% Silicon","2x2.5 Gallon","Manni-Plex Traffic | 6% K2O plus 5% Silicon | 2x2.5 Gallon                                                                                                     | BT_INV-033",146,"Case"]
["Brandt","BT_INV-034","Manni-Plex Ultra Turf","4% N, 2% K2O, 0.5% Mg, 0.25% B, 0.5% Cu, 2% Fe, 0.5% Mn, 0.25% Mo","2x2.5 Gallon","Manni-Plex Ultra Turf | 4% N, 2% K2O, 0.5% Mg, 0.25% B, 0.5% Cu, 2% Fe, 0.5% Mn, 0.25% Mo | 2x2.5 Gallon                                                                                                     | BT_INV-034",140,"Case"]
["Brandt","BT_INV-035","Manni-Plex Zn","3% N, 7% Zn","2x2.5 Gallon","Manni-Plex Zn | 3% N, 7% Zn | 2x2.5 Gallon                                                                                                     | BT_INV-035",119.4,"Case"]
["Brandt","BT_INV-036","FUNGI-Phite","EPA registered fungicide","2.5X2","FUNGI-Phite | EPA registered fungicide | 2.5X2                                                                                                     | BT_INV-036",32.4,"gal"]
["Brandt","BT_INV-037","Gro-Phite","Phosphite fertilizer","2.5X2","Gro-Phite | Phosphite fertilizer | 2.5X2                                                                                                     | BT_INV-037",30,"gal"]
["Brandt","BT_INV-038","Gro-Phite","Phosphite fertilizer","265 gal","Gro-Phite | Phosphite fertilizer | 265 gal                                                                                                     | BT_INV-038",26,"gal"]
["Brandt","BT_INV-039","Nutri-Grow Magnum with N-Riched Technology","Phosphite fertilizer stablizer formulation","2X2.5","Nutri-Grow Magnum with N-Riched Technology | Phosphite fertilizer stablizer formulation | 2X2.5                                                                                                     | BT_INV-039",53,"gal"]
["Brandt","BT_INV-040","Nutri-Grow Calciphite with N-Riched Technology","Calcium Phosphite fertilizer","2X2.5","Nutri-Grow Calciphite with N-Riched Technology | Calcium Phosphite fertilizer | 2X2.5                                                                                                     | BT_INV-040",43.75,"gal"]
["Brandt","BT_INV-041","Nutri-Grow Sulphone with N-Riched Technology","MSM sulpher phosphite fertilizer","5lb","Nutri-Grow Sulphone with N-Riched Technology | MSM sulpher phosphite fertilizer | 5lb                                                                                                     | BT_INV-041",11,"lb"]
["Brandt","BT_INV-042","Safe Zone","Sodium flusher","2X2.5","Safe Zone | Sodium flusher | 2X2.5                                                                                                     | BT_INV-042",28.5,"gal"]
["Brandt","BT_INV-043","Reaction MKS","Liquid Sul-Po-Mag","2X2.5","Reaction MKS | Liquid Sul-Po-Mag | 2X2.5                                                                                                     | BT_INV-043",13,"gal"]
["Brandt","BT_INV-044","Reaction MKS","Liquid Sul-Po-Mag","265 gal tote","Reaction MKS | Liquid Sul-Po-Mag | 265 gal tote                                                                                                     | BT_INV-044",10,"gal"]
["Brandt","BT_INV-045","Reaction P","Long term availablity phosphorous source","2X2.5","Reaction P | Long term availablity phosphorous source | 2X2.5                                                                                                     | BT_INV-045",11.5,"gal"]
["Brandt","BT_INV-046","Reaction K","Long lasting availabilty potassium source ","2X2.5","Reaction K | Long lasting availabilty potassium source  | 2X2.5                                                                                                     | BT_INV-046",9.4,"gal"]
["Brandt","BT_INV-047","Noculate 8-2-8","Ca0.10%Mg0.50%S5.00%Fe1.00%Mn0.50% Ammonium Sulfate, Methylene Urea","50lb bag","Noculate 8-2-8 | Ca0.10%Mg0.50%S5.00%Fe1.00%Mn0.50% Ammonium Sulfate, Methylene Urea | 50lb bag                                                                                                     | BT_INV-047",31,"Bag"]
["Brandt","BT_INV-048","Nocu tain 13-4-13","Fe1.00%Mg1.00%Mn0.50%S4.00% Urea, Methylene Urea","50lb bag","Nocu tain 13-4-13 | Fe1.00%Mg1.00%Mn0.50%S4.00% Urea, Methylene Urea | 50lb bag                                                                                                     | BT_INV-048",35,"Bag"]
["Brandt","BT_INV-049","Noculate 8-3-17","Ca0.80%Fe4.00%Mg1%   Mn3.10%S6% Urea, Methylene Urea","50 lb bag","Noculate 8-3-17 | Ca0.80%Fe4.00%Mg1%   Mn3.10%S6% Urea, Methylene Urea | 50 lb bag                                                                                                     | BT_INV-049",39,"Bag"]
["Brandt","BT_INV-050","Noculate 11-2-11","Ca0.10%Fe0.50%Mg2.00%S12% Ammonium Sulfate","50lb bag","Noculate 11-2-11 | Ca0.10%Fe0.50%Mg2.00%S12% Ammonium Sulfate | 50lb bag                                                                                                     | BT_INV-050",31,"Bag"]
["Brandt","BT_INV-051","Parco 13-2-13 Kym Special","Ca7.10%Fe1.50%Mg3.2%Mn1.50%s6% Ammonium Sulfate, Methylene Urea","50lb bag","Parco 13-2-13 Kym Special | Ca7.10%Fe1.50%Mg3.2%Mn1.50%s6% Ammonium Sulfate, Methylene Urea | 50lb bag                                                                                                     | BT_INV-051",39,"Bag"]
["Brandt","BT_INV-052","BRANDT en-TREE EB","Emamectin Benzoate","50/case ","BRANDT en-TREE EB | Emamectin Benzoate | 50/case                                                                                                      | BT_INV-052",26,"Each"]
["Brandt","BT_INV-053","BRANDT en-TREE EB","Emamectin Benzoate","24/case","BRANDT en-TREE EB | Emamectin Benzoate | 24/case                                                                                                     | BT_INV-053",26,"Each"]
["Brandt","BT_INV-054","BRANDT en-TREE EB","Emamectin Benzoate","12/case","BRANDT en-TREE EB | Emamectin Benzoate | 12/case                                                                                                     | BT_INV-054",26,"Each"]
["Brandt","BT_INV-055","BRANDT en-TREE 0-2.4-2.6","Phosphites","50/case   ","BRANDT en-TREE 0-2.4-2.6 | Phosphites | 50/case                                                                                                        | BT_INV-055",11.08,"Each"]
["Brandt","BT_INV-056","BRANDT en-TREE microPack","Nutrients","50/case ","BRANDT en-TREE microPack | Nutrients | 50/case                                                                                                      | BT_INV-056",7.02,"Each"]
["Brandt","BT_INV-057","Agra Sol No. 101","24.7% Cu, 4% Zn, 4% Mn","15 lb bag","Agra Sol No. 101 | 24.7% Cu, 4% Zn, 4% Mn | 15 lb bag                                                                                                     | BT_INV-057",93,"bag"]
["Brandt","BT_INV-058","Agra Sol Cut Foliage Mix","4% Mg, 0.5% B, 2% Fe, 2% Mn, 0.5% Zn","10 lb bag","Agra Sol Cut Foliage Mix | 4% Mg, 0.5% B, 2% Fe, 2% Mn, 0.5% Zn | 10 lb bag                                                                                                     | BT_INV-058",20.5,"bag"]
["Brandt","BT_INV-059","Megalex","Megalex","2X2.5","Megalex | Megalex | 2X2.5                                                                                                     | BT_INV-059",255,"case"]
["Brandt","BT_INV-060","Upplause Plus","Upplause Plus","2X2.5","Upplause Plus | Upplause Plus | 2X2.5                                                                                                     | BT_INV-060",210,"case"]
["Brandt","BT_INV-061","Advantage MicroPlus","Advantage MicroPlus","2X2.5","Advantage MicroPlus | Advantage MicroPlus | 2X2.5                                                                                                     | BT_INV-061",232.5,"case"]
["Brandt","BT_INV-062","Neo-Tec® SO","Parasitic Nematode Control","2 x 2.5 gal","Neo-Tec® SO | Parasitic Nematode Control | 2 x 2.5 gal                                                                                                     | BT_INV-062",770,"Case"]
["Brandt","BT_INV-063","Neo-Tec® GSO","Granular Parasitic Nematode Control","50 lb bag","Neo-Tec® GSO | Granular Parasitic Nematode Control | 50 lb bag                                                                                                     | BT_INV-063",90,"Bag"]
["Brandt","BT_INV-064","Brandt Nema-Q® (OMRI LISTED)","8.6% Saponins of Quillaja saponaria","5 gal pail","Brandt Nema-Q® (OMRI LISTED) | 8.6% Saponins of Quillaja saponaria | 5 gal pail                                                                                                     | BT_INV-064",582.5,"Pail"]
["Brandt","BT_INV-065","Consan Turf","Fungicide and Algaecide","2 x 2.5 gal","Consan Turf | Fungicide and Algaecide | 2 x 2.5 gal                                                                                                     | BT_INV-065",166,"Case"]
["Brandt","BT_INV-066","Brandt Big Foot® ","Blue Spray Indicator Dye","2 x 2.5 gal","Brandt Big Foot®  | Blue Spray Indicator Dye | 2 x 2.5 gal                                                                                                     | BT_INV-066",170.5,"case"]
["Brandt","BT_INV-067","Brandt Big Foot® ","Blue Spray Indicator Dye","4 x 1 gal","Brandt Big Foot®  | Blue Spray Indicator Dye | 4 x 1 gal                                                                                                     | BT_INV-067",136.5,"case"]
["Brandt","BT_INV-068","Brandt Big Foot® SS","Super Strength Blue Indicator Dye","12 x 1 quart","Brandt Big Foot® SS | Super Strength Blue Indicator Dye | 12 x 1 quart                                                                                                     | BT_INV-068",241,"case"]
["Brandt","BT_INV-069","Brandt Big Foot® WSB","Blue Spray Indicator in Water Soluble Bag","1 x 50 bags","Brandt Big Foot® WSB | Blue Spray Indicator in Water Soluble Bag | 1 x 50 bags                                                                                                     | BT_INV-069",220.5,"pail"]
["Brandt","BT_INV-070","Big Foot® Red SS","Super Strength Red; Great for Herbicides","12 x 1 quart","Big Foot® Red SS | Super Strength Red; Great for Herbicides | 12 x 1 quart                                                                                                     | BT_INV-070",281,"case"]
["Brandt","BT_INV-071","Brandt Mark-It-Red","Super Strenght Red; Great for Herbicides","12 x 1 quart","Brandt Mark-It-Red | Super Strenght Red; Great for Herbicides | 12 x 1 quart                                                                                                     | BT_INV-071",301,"case"]
["Brandt","BT_INV-072","Brandt Green Toes SS","Super Strength Green Indicator Dye","12 x 1 quart","Brandt Green Toes SS | Super Strength Green Indicator Dye | 12 x 1 quart                                                                                                     | BT_INV-072",281,"case"]
["Brandt","BT_INV-073","Brandt Green Toes SS","Super Strength Green Indicator Dye","24 x 8 oz","Brandt Green Toes SS | Super Strength Green Indicator Dye | 24 x 8 oz                                                                                                     | BT_INV-073",191,"case"]
["Brandt","BT_INV-074","Brandt Mean and Green ","Extra Dark Grass and Divot Paint","2 x 2.5 gal","Brandt Mean and Green  | Extra Dark Grass and Divot Paint | 2 x 2.5 gal                                                                                                     | BT_INV-074",420.5,"case"]
["Brandt","BT_INV-075","Brandt Foamy","Foam Indicator Marker","4 x 1 gal","Brandt Foamy | Foam Indicator Marker | 4 x 1 gal                                                                                                     | BT_INV-075",184.5,"case"]
["Brandt","BT_INV-076","Brandt Big Foot® Tablets","Blue Spray Indicator Tablets","6 x 50 tablets","Brandt Big Foot® Tablets | Blue Spray Indicator Tablets | 6 x 50 tablets                                                                                                     | BT_INV-076",120.5,"case"]
["Brandt","BT_INV-077","Blue Lagoon® SS","Blue Super Strength Pond Colorant","12 x 1 quart","Blue Lagoon® SS | Blue Super Strength Pond Colorant | 12 x 1 quart                                                                                                     | BT_INV-077",241,"case"]
["Brandt","BT_INV-078","Blue Lagoon®","Blue Pond Colorant","4 x 1 gal","Blue Lagoon® | Blue Pond Colorant | 4 x 1 gal                                                                                                     | BT_INV-078",150.5,"case"]
["Brandt","BT_INV-079","Blue Lagoon® WSB","Blue Pond Colorant in a Water Soluble Bag","1 x 50 bags","Blue Lagoon® WSB | Blue Pond Colorant in a Water Soluble Bag | 1 x 50 bags                                                                                                     | BT_INV-079",220.5,"pail"]
["Brandt","BT_INV-080","Brandt Blue Shadow","Blue/Green Super Strength Pond Colorant","12 x 1 quart","Brandt Blue Shadow | Blue/Green Super Strength Pond Colorant | 12 x 1 quart                                                                                                     | BT_INV-080",260.5,"case"]
["Brandt","BT_INV-081","Brandt Midnight Blue SS","Blue/Black Super Strength Pond Colorant","12 x 1 quart","Brandt Midnight Blue SS | Blue/Black Super Strength Pond Colorant | 12 x 1 quart                                                                                                     | BT_INV-081",240,"case"]
["Brandt","BT_INV-082","Bradnt Loch Ness® SS","Black Super Strength Pond Colorant","12 x 1 quart","Bradnt Loch Ness® SS | Black Super Strength Pond Colorant | 12 x 1 quart                                                                                                     | BT_INV-082",341,"case"]
["Brandt","BT_INV-083","Brandt AquaSurf™","90% Aquatic Adjuvant Eco-Friendly Non Ionic ","4x1 gal","Brandt AquaSurf™ | 90% Aquatic Adjuvant Eco-Friendly Non Ionic  | 4x1 gal                                                                                                     | BT_INV-083",192,"Case"]
["Brandt","BT_INV-084","Brandt Topcoat","100% Active Soil Wetting Agent","2 x 2.5 gal","Brandt Topcoat | 100% Active Soil Wetting Agent | 2 x 2.5 gal                                                                                                     | BT_INV-084",400,"Case"]
["Brandt","BT_INV-085","Brandt Defoamer","Spray Tank Defoamer","12 x 1 quart","Brandt Defoamer | Spray Tank Defoamer | 12 x 1 quart                                                                                                     | BT_INV-085",110,"case"]
["COMAND","LS_COM-001","7030DIVOT-GAS","70/30 COMAND Green Divot Mix","2000 Lb Bag","7030DIVOT-GAS | 70/30 COMAND Green Divot Mix | 2000 Lb Bag                                                                                                     | LS_COM-001",190,"Tote"]
["COMAND","LS_COM-002","COMAND 1/8 100-LIF","40 X COMAND 1/8 45 Lb Bags","(40) X 45 Lb Bag","COMAND 1/8 100-LIF | 40 X COMAND 1/8 45 Lb Bags | (40) X 45 Lb Bag                                                                                                     | LS_COM-002",560,"Pallet"]
["COMAND","LS_COM-003","COMAND 1/8 100 SACK-LIF","COMAND 1/8 1000 Lb Sack","1000 Lb Bag","COMAND 1/8 100 SACK-LIF | COMAND 1/8 1000 Lb Sack | 1000 Lb Bag                                                                                                     | LS_COM-003",330,"Tote"]
["Emerald Isle","EI_CPR-001",3118800,"CPR  Premix Biostimulant 4-0-1","2x2.5 Gallon","3118800 | CPR  Premix Biostimulant 4-0-1 | 2x2.5 Gallon                                                                                                     | EI_CPR-001",244,"Case"]
["Emerald Isle","EI_CPR-002",3118801,"CPR  Premix Biostimulant 4-0-1","15 Gal Drum","3118801 | CPR  Premix Biostimulant 4-0-1 | 15 Gal Drum                                                                                                     | EI_CPR-002",685,"Drum"]
["Emerald Isle","EI_CPR-003",3118802,"PanaSea Plus  Seaplant Extract 0-2-2","2x2.5 Gallon","3118802 | PanaSea Plus  Seaplant Extract 0-2-2 | 2x2.5 Gallon                                                                                                     | EI_CPR-003",373,"Case"]
["Emerald Isle","EI_CPR-004",3118803,"PanaSea Plus  Seaplant Extract 0-2-2","15 Gal Drum","3118803 | PanaSea Plus  Seaplant Extract 0-2-2 | 15 Gal Drum                                                                                                     | EI_CPR-004",1040,"Drum"]
["Emerald Isle","EI_CPR-005",3118805,"True Foliar N  19-1-6","2x2.5 Gallon","3118805 | True Foliar N  19-1-6 | 2x2.5 Gallon                                                                                                     | EI_CPR-005",210,"Case"]
["Emerald Isle","EI_CPR-006",3118806,"True Foliar N  19-1-6","15 Gal Drum","3118806 | True Foliar N  19-1-6 | 15 Gal Drum                                                                                                     | EI_CPR-006",605,"Drum"]
["Emerald Isle","EI_CPR-007",3118807,"True Foliar P  6-12-6","2x2.5 Gallon","3118807 | True Foliar P  6-12-6 | 2x2.5 Gallon                                                                                                     | EI_CPR-007",224,"Case"]
["Emerald Isle","EI_CPR-008",3118808,"True Foliar P  6-12-6","15 Gal Drum","3118808 | True Foliar P  6-12-6 | 15 Gal Drum                                                                                                     | EI_CPR-008",626,"Drum"]
["Emerald Isle","EI_CPR-009",3118809,"True Foliar NPK  10-3-16","2x2.5 Gallon","3118809 | True Foliar NPK  10-3-16 | 2x2.5 Gallon                                                                                                     | EI_CPR-009",255,"Case"]
["Emerald Isle","EI_CPR-010",3118810,"True Foliar NPK  10-3-16","15 Gal Drum","3118810 | True Foliar NPK  10-3-16 | 15 Gal Drum                                                                                                     | EI_CPR-010",725,"Drum"]
["Emerald Isle","EI_CPR-011",3118811,"True Foliar K  2-0-16","2x2.5 Gallon","3118811 | True Foliar K  2-0-16 | 2x2.5 Gallon                                                                                                     | EI_CPR-011",255,"Case"]
["Emerald Isle","EI_CPR-012",3118812,"True Foliar K  2-0-16","15 Gal Drum","3118812 | True Foliar K  2-0-16 | 15 Gal Drum                                                                                                     | EI_CPR-012",727,"Drum"]
["Emerald Isle","EI_CPR-013",3118813,"True Foliar Si  3-0-10","2x2.5 Gallon","3118813 | True Foliar Si  3-0-10 | 2x2.5 Gallon                                                                                                     | EI_CPR-013",247,"Case"]
["Emerald Isle","EI_CPR-014",3118814,"True Foliar Si  3-0-10","15 Gal Drum","3118814 | True Foliar Si  3-0-10 | 15 Gal Drum                                                                                                     | EI_CPR-014",703,"Drum"]
["Emerald Isle","EI_CPR-015",3118815,"True Foliar Ca  8-0-4","2x2.5 Gallon","3118815 | True Foliar Ca  8-0-4 | 2x2.5 Gallon                                                                                                     | EI_CPR-015",247,"Case"]
["Emerald Isle","EI_CPR-016",3118816,"True Foliar Ca  8-0-4","15 Gal Drum","3118816 | True Foliar Ca  8-0-4 | 15 Gal Drum                                                                                                     | EI_CPR-016",703,"Drum"]
["Emerald Isle","EI_CPR-017",3118819,"True Foliar Mg Mn  6-0-0","2x2.5 Gallon","3118819 | True Foliar Mg Mn  6-0-0 | 2x2.5 Gallon                                                                                                     | EI_CPR-017",246,"Case"]
["Emerald Isle","EI_CPR-018",3118820,"True Foliar Mg Mn  6-0-0","15 Gal Drum","3118820 | True Foliar Mg Mn  6-0-0 | 15 Gal Drum                                                                                                     | EI_CPR-018",695,"Drum"]
["Grigg Brothers","GB_GSG-001","7-7-7 Seven Iron™","7-7-7 Coarse Grade","50 Lb Bag","7-7-7 Seven Iron™ | 7-7-7 Coarse Grade | 50 Lb Bag                                                                                                     | GB_GSG-001",47.5,"Bag"]
["Grigg Brothers","GB_GSG-002","7-7-7 Seven Iron™","7-7-7 Fine Grade","50 Lb Bag","7-7-7 Seven Iron™ | 7-7-7 Fine Grade | 50 Lb Bag                                                                                                     | GB_GSG-002",47.5,"Bag"]
["Grigg Brothers","GB_GSG-003","7-0-14 ZeroPhos®","7-0-14 Coarse Grade","50 Lb Bag","7-0-14 ZeroPhos® | 7-0-14 Coarse Grade | 50 Lb Bag                                                                                                     | GB_GSG-003",47.5,"Bag"]
["Grigg Brothers","GB_GSG-004","7-0-14 ZeroPhos®","7-0-14 Fine Grade","50 Lb Bag","7-0-14 ZeroPhos® | 7-0-14 Fine Grade | 50 Lb Bag                                                                                                     | GB_GSG-004",47.5,"Bag"]
["Grigg Brothers","GB_GSG-005","10-2-4 All Natural Organic","10-2-4 Fine Grade","50 Lb Bag","10-2-4 All Natural Organic | 10-2-4 Fine Grade | 50 Lb Bag                                                                                                     | GB_GSG-005",49.5,"Bag"]
["Grigg Brothers","GB_GSG-006","CK Balance™","Fine Grade","50 Lb Bag","CK Balance™ | Fine Grade | 50 Lb Bag                                                                                                     | GB_GSG-006",46.5,"Bag"]
["Grigg Brothers","GB_GSG-007","SK Balance™","Fine Grade","50 Lb Bag","SK Balance™ | Fine Grade | 50 Lb Bag                                                                                                     | GB_GSG-007",47.5,"Bag"]
["Grigg Brothers","GB_PFL-001","Sili Kal B™","Sili Kal B™ 8-0-4   ","2x2.5 Gallon","Sili Kal B™ | Sili Kal B™ 8-0-4    | 2x2.5 Gallon                                                                                                     | GB_PFL-001",270.3,"Case"]
["Grigg Brothers","GB_PFL-002","A-O-K®","A-O-K® 1-0-25","2x2.5 Gallon","A-O-K® | A-O-K® 1-0-25 | 2x2.5 Gallon                                                                                                     | GB_PFL-002",211.25,"Case"]
["Grigg Brothers","GB_PFL-003","Microburst™","Microburst™ 0-0-1","2x2.5 Gallon","Microburst™ | Microburst™ 0-0-1 | 2x2.5 Gallon                                                                                                     | GB_PFL-003",247.5,"Case"]
["Grigg Brothers","GB_PFL-004","Gary's Green Ultra","Gary's Green Ultra 13-2-3 +Fe","2x2.5 Gallon","Gary's Green Ultra | Gary's Green Ultra 13-2-3 +Fe | 2x2.5 Gallon                                                                                                     | GB_PFL-004",220.6,"Case"]
["Grigg Brothers","GB_PFL-005","Gary's Green®","Gary's Green® 18-3-4 +Fe ","2x2.5 Gallon","Gary's Green® | Gary's Green® 18-3-4 +Fe  | 2x2.5 Gallon                                                                                                     | GB_PFL-005",201.45,"Case"]
["Grigg Brothers","GB_PFL-006","Suprema®","Suprema® 12-0-12","2x2.5 Gallon","Suprema® | Suprema® 12-0-12 | 2x2.5 Gallon                                                                                                     | GB_PFL-006",191.25,"Case"]
["Grigg Brothers","GB_PFL-007","Ultraplex®","Ultraplex® 4-0-3 ","2x2.5 Gallon","Ultraplex® | Ultraplex® 4-0-3  | 2x2.5 Gallon                                                                                                     | GB_PFL-007",262.64999999999998,"Case"]
["Grigg Brothers","GB_PFL-008","P-K Plus®","P-K Plus® 3-7-18 ","2x2.5 Gallon","P-K Plus® | P-K Plus® 3-7-18  | 2x2.5 Gallon                                                                                                     | GB_PFL-008",283.05,"Case"]
["Grigg Brothers","GB_PFL-009","Tuff Turf®","Tuff Turf® 1-0-14 ","2x2.5 Gallon","Tuff Turf® | Tuff Turf® 1-0-14  | 2x2.5 Gallon                                                                                                     | GB_PFL-009",288.14999999999998,"Case"]
["Grigg Brothers","GB_PFL-010","Low N Plus™","Low N Plus™ 1-6-12","2x2.5 Gallon","Low N Plus™ | Low N Plus™ 1-6-12 | 2x2.5 Gallon                                                                                                     | GB_PFL-010",191.25,"Case"]
["Grigg Brothers","GB_PFL-011","Kelplex™ ","Kelplex™ 1-2-2    ","2x2.5 Gallon","Kelplex™  | Kelplex™ 1-2-2     | 2x2.5 Gallon                                                                                                     | GB_PFL-011",341.7,"Case"]
["Grigg Brothers","GB_PFL-012","Iron Combo Chelate 4%®","Iron Combo Chelate 4%®","2x2.5 Gallon","Iron Combo Chelate 4%® | Iron Combo Chelate 4%® | 2x2.5 Gallon                                                                                                     | GB_PFL-012",260,"Case"]
["Grigg Brothers","GB_PFL-013","Elicitor®","Elicitor®","2x2.5 Gallon","Elicitor® | Elicitor® | 2x2.5 Gallon                                                                                                     | GB_PFL-013",159,"Case"]
["Grigg Brothers","GB_PGT-001","GreenPIG™","GreenPIG™","2x2.5 Gallon","GreenPIG™ | GreenPIG™ | 2x2.5 Gallon                                                                                                     | GB_PGT-001",760,"Case"]
["Grigg Brothers","GB_SMD-001","Markit-Blue™","Markit-Blue™","2x2.5 Gallon","Markit-Blue™ | Markit-Blue™ | 2x2.5 Gallon                                                                                                     | GB_SMD-001",216.25,"Case"]
["Grigg Brothers","GB_SMD-002","Markit-Green™","Markit-Green™","2x2.5 Gallon","Markit-Green™ | Markit-Green™ | 2x2.5 Gallon                                                                                                     | GB_SMD-002",216.25,"Case"]
["Grigg Brothers","GB_SPL-001","Rhizonify™","Rhizonify™","2x2.5 Gallon","Rhizonify™ | Rhizonify™ | 2x2.5 Gallon                                                                                                     | GB_SPL-001",165,"Case"]
["Grigg Brothers","GB_SPL-002","Displace™","Displace™","2x2.5 Gallon","Displace™ | Displace™ | 2x2.5 Gallon                                                                                                     | GB_SPL-002",218.75,"Case"]
["Grigg Brothers","GB_SPL-003","Carboplex®","Carboplex® 6-4-4","2x2.5 Gallon","Carboplex® | Carboplex® 6-4-4 | 2x2.5 Gallon                                                                                                     | GB_SPL-003",136.25,"Case"]
["Grigg Brothers","GB_SPL-004","Bio Blend™","Bio Blend™ 10-0-0","2x2.5 Gallon","Bio Blend™ | Bio Blend™ 10-0-0 | 2x2.5 Gallon                                                                                                     | GB_SPL-004",270,"Case"]
["GV Water Soluble","GV_WSF-001","GV12636-PFI","12-6-36 Water Soluble Fertilizer","25 Lb. Bag","GV12636-PFI | 12-6-36 Water Soluble Fertilizer | 25 Lb. Bag                                                                                                     | GV_WSF-001",29,"Bag"]
["GV Water Soluble","GV_WSF-002","GV202020-PFI","20-20-20 Water Soluble Fertilizer w/ Minors","25 Lb. Bag","GV202020-PFI | 20-20-20 Water Soluble Fertilizer w/ Minors | 25 Lb. Bag                                                                                                     | GV_WSF-002",28,"Bag"]
["GV Water Soluble","GV_WSF-003","GV21331-PFI","21-3-31 Water Soluble Fertilizer","25 Lb. Bag","GV21331-PFI | 21-3-31 Water Soluble Fertilizer | 25 Lb. Bag                                                                                                     | GV_WSF-003",28.5,"Bag"]
["Performance Nutritution","PN_AEA-001","Argosy RF","Rain-Fast Adjuvant for Pesticide Applications","2x2.5 Gallon","Argosy RF | Rain-Fast Adjuvant for Pesticide Applications | 2x2.5 Gallon                                                                                                     | PN_AEA-001",65,"Gallon"]
["Performance Nutritution","PN_BWC-001","Black Castings","OMRI Listed Wormj Castings, 1-0.5-.05+1%Ca","40 Lb Bag","Black Castings | OMRI Listed Wormj Castings, 1-0.5-.05+1%Ca | 40 Lb Bag                                                                                                     | PN_BWC-001",0.81,"Lb"]
["Performance Nutritution","PN_KMS-001","Krystal Klear® B","5% Boron","2x2.5 Gallon","Krystal Klear® B | 5% Boron | 2x2.5 Gallon                                                                                                     | PN_KMS-001",26,"Gallon"]
["Performance Nutritution","PN_KMS-002","Krystal Klear® Ca","3% Calcium","2x2.5 Gallon","Krystal Klear® Ca | 3% Calcium | 2x2.5 Gallon                                                                                                     | PN_KMS-002",26,"Gallon"]
["Performance Nutritution","PN_KMS-003","Krystal Klear® Cu","5% Copper","2x2.5 Gallon","Krystal Klear® Cu | 5% Copper | 2x2.5 Gallon                                                                                                     | PN_KMS-003",44,"Gallon"]
["Performance Nutritution","PN_KMS-004","Krystal Klear® Fe","4% Iron","2x2.5 Gallon","Krystal Klear® Fe | 4% Iron | 2x2.5 Gallon                                                                                                     | PN_KMS-004",33,"Gallon"]
["Performance Nutritution","PN_KMS-005","Krystal Klear® Mg","3% Magnesium","2x2.5 Gallon","Krystal Klear® Mg | 3% Magnesium | 2x2.5 Gallon                                                                                                     | PN_KMS-005",40,"Gallon"]
["Performance Nutritution","PN_KMS-006","Krystal Klear® Mn","5% Manganese","2x2.5 Gallon","Krystal Klear® Mn | 5% Manganese | 2x2.5 Gallon                                                                                                     | PN_KMS-006",36,"Gallon"]
["Performance Nutritution","PN_KMS-007","Krystal Klear® ResQ","8-0-2 with 2% Fe, 0.5% Mg, 0.5% Mn, 0.25% B, Cu, Zn","2x2.5 Gallon","Krystal Klear® ResQ | 8-0-2 with 2% Fe, 0.5% Mg, 0.5% Mn, 0.25% B, Cu, Zn | 2x2.5 Gallon                                                                                                     | PN_KMS-007",43,"Gallon"]
["Performance Nutritution","PN_KMS-008","Krystal Klear® Turf Mix","3% Fe, 1% Mn, 0.25% Cu, 0.25% B","2x2.5 Gallon","Krystal Klear® Turf Mix | 3% Fe, 1% Mn, 0.25% Cu, 0.25% B | 2x2.5 Gallon                                                                                                     | PN_KMS-008",39,"Gallon"]
["Performance Nutritution","PN_KMS-009","Krystal Klear® Zn","9% Zinc","2x2.5 Gallon","Krystal Klear® Zn | 9% Zinc | 2x2.5 Gallon                                                                                                     | PN_KMS-009",40,"Gallon"]
["Performance Nutritution","PN_KNM-001","KaPre® Embella","Patented Soil Amendment","2x2.5 Gallon","KaPre® Embella | Patented Soil Amendment | 2x2.5 Gallon                                                                                                     | PN_KNM-001",60,"Gallon"]
["Performance Nutritution","PN_KNM-002","KaPre® ExAlt","Soil Surfactant & Fertilizer Additive","2x2.5 Gallon","KaPre® ExAlt | Soil Surfactant & Fertilizer Additive | 2x2.5 Gallon                                                                                                     | PN_KNM-002",98,"Gallon"]
["Performance Nutritution","PN_KNM-003","KaPre® KelpPlus","Sea Kelp plus 17 Amino Acids and Vitamin C","2x2.5 Gallon","KaPre® KelpPlus | Sea Kelp plus 17 Amino Acids and Vitamin C | 2x2.5 Gallon                                                                                                     | PN_KNM-003",30,"Gallon"]
["Performance Nutritution","PN_KNM-004","KaPre® PhoNix","Patented Stress-Fighting Solution","2x2.5 Gallon","KaPre® PhoNix | Patented Stress-Fighting Solution | 2x2.5 Gallon                                                                                                     | PN_KNM-004",120,"Gallon"]
["Performance Nutritution","PN_KNM-005","KaPre® ProCreate","Patented NPK Solution with micros and PO3","2x2.5 Gallon","KaPre® ProCreate | Patented NPK Solution with micros and PO3 | 2x2.5 Gallon                                                                                                     | PN_KNM-005",46,"Gallon"]
["Performance Nutritution","PN_KNM-006","KaPre® Spectra","Concentrated Fulvic Acid Solution","2x2.5 Gallon","KaPre® Spectra | Concentrated Fulvic Acid Solution | 2x2.5 Gallon                                                                                                     | PN_KNM-006",100,"Gallon"]
["Performance Nutritution","PN_KNM-007","KaPre® RemeD8-WSP & KaPre® Activ8","Patented Soil Amendment & Fertilizer Additive","2x2.5 Gallon","KaPre® RemeD8-WSP & KaPre® Activ8 | Patented Soil Amendment & Fertilizer Additive | 2x2.5 Gallon                                                                                                     | PN_KNM-007",94,"Gallon"]
["Performance Nutritution","PN_LSF-001","LidoQuest® FeMn","10% Fe and 3% Mn","25 Lb Bag","LidoQuest® FeMn | 10% Fe and 3% Mn | 25 Lb Bag                                                                                                     | PN_LSF-001",7,"Lb."]
["Performance Nutritution","PN_LSF-002","LidoQuest® FeMn&Mg","4.33% Fe, 4.33% Mn and 2% Mg","25 Lb Bag","LidoQuest® FeMn&Mg | 4.33% Fe, 4.33% Mn and 2% Mg | 25 Lb Bag                                                                                                     | PN_LSF-002",7,"Lb."]
["Performance Nutritution","PN_NEF-001","NutriSmart®- B  SGN 150","0-0-0 - OMRI Listed Soil Inoculant","50 Lb Bag","NutriSmart®- B  SGN 150 | 0-0-0 - OMRI Listed Soil Inoculant | 50 Lb Bag                                                                                                     | PN_NEF-001",0.56999999999999995,"Lb."]
["Performance Nutritution","PN_NEF-002","NutriSmart®- B  SGN 250","0-0-0 - OMRI Listed Soil Inoculant","51 Lb Bag","NutriSmart®- B  SGN 250 | 0-0-0 - OMRI Listed Soil Inoculant | 51 Lb Bag                                                                                                     | PN_NEF-002",0.56999999999999995,"Lb."]
["Performance Nutritution","PN_NEF-003","NutriSmart®- SB  SGN 250*","0-0-0 - OMRI Listed Soil Inoculant","52 Lb Bag","NutriSmart®- SB  SGN 250* | 0-0-0 - OMRI Listed Soil Inoculant | 52 Lb Bag                                                                                                     | PN_NEF-003",0.47,"Lb."]
["Performance Nutritution","PN_NPF-001","Nutrol®","Broad Spectrum Fungicide, Fertilizer and Tank Buffer","8 Lb Bag","Nutrol® | Broad Spectrum Fungicide, Fertilizer and Tank Buffer | 8 Lb Bag                                                                                                     | PN_NPF-001",3,"Lb"]
["Performance Nutritution","PN_PFS-001","Prudent® 42cw","15-0-0 with 42% PO3  - formulated with urea phosphite","2x2.5 Gallon","Prudent® 42cw | 15-0-0 with 42% PO3  - formulated with urea phosphite | 2x2.5 Gallon                                                                                                     | PN_PFS-001",60,"Gallon"]
["Performance Nutritution","PN_PFS-002","Prudent® 44","15-0-0 with 42-44% PO3  - formulated with urea phosphite","2x2.5 Gallon","Prudent® 44 | 15-0-0 with 42-44% PO3  - formulated with urea phosphite | 2x2.5 Gallon                                                                                                     | PN_PFS-002",60,"Gallon"]
["Performance Nutritution","PN_PGR-001","Agra Rouse®","0.05% Cytokinin, 0.05% Gibberellic acid & 0.09% IBA","1 Gallon Bottle","Agra Rouse® | 0.05% Cytokinin, 0.05% Gibberellic acid & 0.09% IBA | 1 Gallon Bottle                                                                                                     | PN_PGR-001",260,"Gallon"]
["Performance Nutritution","PN_PGR-002","Incite®","0.09% Cytokinin, 0.05% Gibberellic acid & 0.09% IBA","1 Gallon Bottle","Incite® | 0.09% Cytokinin, 0.05% Gibberellic acid & 0.09% IBA | 1 Gallon Bottle                                                                                                     | PN_PGR-002",260,"Gallon"]
["Performance Nutritution","PN_PMP-001","Pennamin® Driver - P","12-0-0 Water Soluble Amino Acids","8x5 Lb","Pennamin® Driver - P | 12-0-0 Water Soluble Amino Acids | 8x5 Lb                                                                                                     | PN_PMP-001",14,"Lb"]
["Performance Nutritution","PN_PMP-002","Pennamin® Fe&Mn","9-0-0+4%Fe+3%Mn - Water Soluble","8x5 Lb","Pennamin® Fe&Mn | 9-0-0+4%Fe+3%Mn - Water Soluble | 8x5 Lb                                                                                                     | PN_PMP-002",13,"Lb"]
["Performance Nutritution","PN_PMP-003","Pennamin® High-K","6-0-15 + 9% Ca - Water Soluble","8x5 Lb","Pennamin® High-K | 6-0-15 + 9% Ca - Water Soluble | 8x5 Lb                                                                                                     | PN_PMP-003",13,"Lb"]
["Performance Nutritution","PN_PMP-004","Pennamin® Mg","12-0-0 +12%Mg - Water Soluble ","8x5 Lb","Pennamin® Mg | 12-0-0 +12%Mg - Water Soluble  | 8x5 Lb                                                                                                     | PN_PMP-004",13,"Lb"]
["Performance Nutritution","PN_PMP-005","Pennamin® Perfect-K","8-0-9 + 5% Ca, 2% Mg, 0.1% Fe, 0.05% Mn, 0.02% B, 0.02% Zn & 0.01% Cu","8x5 Lb","Pennamin® Perfect-K | 8-0-9 + 5% Ca, 2% Mg, 0.1% Fe, 0.05% Mn, 0.02% B, 0.02% Zn & 0.01% Cu | 8x5 Lb                                                                                                     | PN_PMP-005",14,"Lb"]
["Performance Nutritution","PN_PMP-006","Pennamin® Si","10-0-0 + 4% Si","8x5 Lb","Pennamin® Si | 10-0-0 + 4% Si | 8x5 Lb                                                                                                     | PN_PMP-006",16,"Lb"]
["Performance Nutritution","PN_VFE-001","Vibrant® Green","18-3-4 with 1% Fe, 0.1% Mn, Zn & 0.025% B with organic compounds","2x2.5 Gallon","Vibrant® Green | 18-3-4 with 1% Fe, 0.1% Mn, Zn & 0.025% B with organic compounds | 2x2.5 Gallon                                                                                                     | PN_VFE-001",32,"Gallon"]
["Performance Nutritution","PN_VFE-002","Vibrant® Purple","18-0-4 with 1% Fe, 0.1% Mn, Zn & 0.025% B with organic compounds","2x2.5 Gallon","Vibrant® Purple | 18-0-4 with 1% Fe, 0.1% Mn, Zn & 0.025% B with organic compounds | 2x2.5 Gallon                                                                                                     | PN_VFE-002",32,"Gallon"]
["Performance Nutritution","PN_VFE-003","Vibrant® Red","3-6-12 with 0.1% Cu, Fe, Mn and Zn, 0.05% Si & 0.025% B plus organic compounds","2x2.5 Gallon","Vibrant® Red | 3-6-12 with 0.1% Cu, Fe, Mn and Zn, 0.05% Si & 0.025% B plus organic compounds | 2x2.5 Gallon                                                                                                     | PN_VFE-003",32,"Gallon"]
["Performance Nutritution","PN_VFE-004","Vibrant® Silver","3-0-12 with 0.1% Cu, Fe, Mn and Zn, 0.05% Si & 0.025% B plus organic compounds","2x2.5 Gallon","Vibrant® Silver | 3-0-12 with 0.1% Cu, Fe, Mn and Zn, 0.05% Si & 0.025% B plus organic compounds | 2x2.5 Gallon                                                                                                     | PN_VFE-004",32,"Gallon"]
["Performance Nutritution","PN_WCE-001","VermaPlex®","OMRI listed Worm Casting Extract","2x2.5 Gallon","VermaPlex® | OMRI listed Worm Casting Extract | 2x2.5 Gallon                                                                                                     | PN_WCE-001",14,"Gallon"]
["Performance Nutritution","PN_ZSC-001","Z.one® T&O 250, SGN 150","Patented Soil Conditioner w KaPre® Soil Amendments","50 Lb Bags","Z.one® T&O 250, SGN 150 | Patented Soil Conditioner w KaPre® Soil Amendments | 50 Lb Bags                                                                                                     | PN_ZSC-001",0.95,"Lb"]
["Performance Nutritution","PN_ZSC-002","Z.one® VitaSmart, SGN 150","Patented Blend of Z.one® T&O-250 and NutriSmart®-B","50 Lb Bags","Z.one® VitaSmart, SGN 150 | Patented Blend of Z.one® T&O-250 and NutriSmart®-B | 50 Lb Bags                                                                                                     | PN_ZSC-002",1,"Lb"]
["Select Source","SS_ADJ-001","80/20 Select™","80% Nonionic Surfactant","2x2.5","80/20 Select™ | 80% Nonionic Surfactant | 2x2.5                                                                                                     | SS_ADJ-001",17.460317460317459,"Gallon"]
["Select Source","SS_ADJ-002","Duo Stick Select™","MSO + Organosilicone Surfactant Blend","2x2.5","Duo Stick Select™ | MSO + Organosilicone Surfactant Blend | 2x2.5                                                                                                     | SS_ADJ-002",38.095238095238095,"Gallon"]
["Select Source","SS_ADJ-003","MSO Select™","MSO","2x2.5","MSO Select™ | MSO | 2x2.5                                                                                                     | SS_ADJ-003",26.984126984126984,"Gallon"]
["Select Source","SS_ADJ-004","PS 804 Select™","Similar to LI 700","2x2.5","PS 804 Select™ | Similar to LI 700 | 2x2.5                                                                                                     | SS_ADJ-004",27.777777777777779,"Gallon"]
["Select Source","SS_ADJ-005","Triple Max Select™","H20 Conditioner/Acidifer/Surfactant","2x2.5","Triple Max Select™ | H20 Conditioner/Acidifer/Surfactant | 2x2.5                                                                                                     | SS_ADJ-005",27.777777777777779,"Gallon"]
["Select Source","SS_AQD-001","Aqua Blue Select™","Blue Pond Dye","1 Gallon","Aqua Blue Select™ | Blue Pond Dye | 1 Gallon                                                                                                     | SS_AQD-001",39.682539682539684,"Gallon"]
["Select Source","SS_AQD-002","Aqua Black Select™","Black Pond Dye","1 Gallon","Aqua Black Select™ | Black Pond Dye | 1 Gallon                                                                                                     | SS_AQD-002",71.428571428571431,"Gallon"]
["Select Source","SS_FNG-001","Azoxy 50 WDG Select™","Alternative for: Heritage® 50 WDG","1 #","Azoxy 50 WDG Select™ | Alternative for: Heritage® 50 WDG | 1 #                                                                                                     | SS_FNG-001",168.8,"LB"]
["Select Source","SS_FNG-002","AzTeb Select™","Alternative for: Unique Formulation","1 Gallon","AzTeb Select™ | Alternative for: Unique Formulation | 1 Gallon                                                                                                     | SS_FNG-002",435.05,"Gallon"]
["Select Source","SS_FNG-003","Chlorothalonil 720 Select™","Alternative for: Daconil Weatherstik®","2x2.5","Chlorothalonil 720 Select™ | Alternative for: Daconil Weatherstik® | 2x2.5                                                                                                     | SS_FNG-003",47.75,"Gallon"]
["Select Source","SS_FNG-004","Chlorothalonil 82.5DF Select™","Alternative for: Daconil Ultrex®","4x5","Chlorothalonil 82.5DF Select™ | Alternative for: Daconil Ultrex® | 4x5                                                                                                     | SS_FNG-004",8.75,"LB"]
["Select Source","SS_FNG-005","Echo ZN","Alternative for: Daconil® ZN","2x2.5","Echo ZN | Alternative for: Daconil® ZN | 2x2.5                                                                                                     | SS_FNG-005",45.95,"Gallon"]
["Select Source","SS_FNG-006","Fosal Select™","Alternative for: Chipco Signature®","11 #","Fosal Select™ | Alternative for: Chipco Signature® | 11 #                                                                                                     | SS_FNG-006",16.5,"LB"]
["Select Source","SS_FNG-007","Iprodione 2F Select™","Alternative for: Chipco 26019®","2x2.5","Iprodione 2F Select™ | Alternative for: Chipco 26019® | 2x2.5                                                                                                     | SS_FNG-007",48,"Gallon"]
["Select Source","SS_FNG-008","Manzate Max T&O","Alternative for: Dithane®","2x2.5","Manzate Max T&O | Alternative for: Dithane® | 2x2.5                                                                                                     | SS_FNG-008",43.85,"Gallon"]
["Select Source","SS_FNG-009","Manzate Pro-Stick T&O","Alternative for: Dithane®","48 #","Manzate Pro-Stick T&O | Alternative for: Dithane® | 48 #                                                                                                     | SS_FNG-009",5.8,"LB"]
["Select Source","SS_FNG-010","PPZ 41.8 Select™","Alternative for: Spectator™","1 Gallon","PPZ 41.8 Select™ | Alternative for: Spectator™ | 1 Gallon                                                                                                     | SS_FNG-010",125,"Gallon"]
["Select Source","SS_FNG-011","Propiconazole 14.3 Select™","Alternative for: Banner Maxx®","2x2.5","Propiconazole 14.3 Select™ | Alternative for: Banner Maxx® | 2x2.5                                                                                                     | SS_FNG-011",62.5,"Gallon"]
["Select Source","SS_FNG-012","Proplant","Alternative for: Banol®","1 Gallon","Proplant | Alternative for: Banol® | 1 Gallon                                                                                                     | SS_FNG-012",396.10389610389609,"Gallon"]
["Select Source","SS_FNG-013","Regulate® Select","Proprietary alternative to Subdue® Maxx","1 Gallon","Regulate® Select | Proprietary alternative to Subdue® Maxx | 1 Gallon                                                                                                     | SS_FNG-013",370.25,"Gallon"]
["Select Source","SS_FNG-014","Tebuconazole 3.6 Select™","Alternative for: Torque®","1 Gallon","Tebuconazole 3.6 Select™ | Alternative for: Torque® | 1 Gallon                                                                                                     | SS_FNG-014",62.35,"Gallon"]
["Select Source","SS_FNG-015","TM 4.5 Select™","Alternative for: Cleary's 3336®","2x2.5","TM 4.5 Select™ | Alternative for: Cleary's 3336® | 2x2.5                                                                                                     | SS_FNG-015",65.8,"Gallon"]
["Select Source","SS_HRB-001","Diquat 2L","Alternative for: Reward","2x2.5","Diquat 2L | Alternative for: Reward | 2x2.5                                                                                                     | SS_HRB-001",58.9,"Gallon"]
["Select Source","SS_HRB-002","Dithiopyr 2L","Alternative for: Dimension® 2EW","1 Gallon","Dithiopyr 2L | Alternative for: Dimension® 2EW | 1 Gallon                                                                                                     | SS_HRB-002",205.2,"Gallon"]
["Select Source","SS_HRB-003","Dithiopyr 40 WSP","Alternative for: Dimension Ultra®","20 oz","Dithiopyr 40 WSP | Alternative for: Dimension Ultra® | 20 oz                                                                                                     | SS_HRB-003",57.45,"Pack"]
["Select Source","SS_HRB-004","Glystar Plus","Alternative for: Roundup Pro","2x2.5","Glystar Plus | Alternative for: Roundup Pro | 2x2.5                                                                                                     | SS_HRB-004",15.6,"Gallon"]
["Select Source","SS_HRB-005","Glystar Plus","Alternative for: Roundup Pro","30 Gallon","Glystar Plus | Alternative for: Roundup Pro | 30 Gallon                                                                                                     | SS_HRB-005",14.95,"Gallon"]
["Select Source","SS_HRB-006","Meso 4SC Select™","Alternative for: Tenacity®","1 Gallon","Meso 4SC Select™ | Alternative for: Tenacity® | 1 Gallon                                                                                                     | SS_HRB-006",649.35,"Gallon"]
["Select Source","SS_HRB-007","Metribuzin (was Tricor)","Alternative for: Sencor®","5 #","Metribuzin (was Tricor) | Alternative for: Sencor® | 5 #                                                                                                     | SS_HRB-007",20.149999999999999,"Pound"]
["Select Source","SS_HRB-008","Oxadiazion 2G","Alternative for: Ronstar®","50#","Oxadiazion 2G | Alternative for: Ronstar® | 50#                                                                                                     | SS_HRB-008",72.5,"Bag"]
["Select Source","SS_HRB-009","Oxadiazion SC","Alternative for: Ronstar®","2x2.5","Oxadiazion SC | Alternative for: Ronstar® | 2x2.5                                                                                                     | SS_HRB-009",147.40259740259739,"Gallon"]
["Select Source","SS_HRB-010","Oxadiazion 50 WSP","Alternative for: Ronstar®","5x2x1","Oxadiazion 50 WSP | Alternative for: Ronstar® | 5x2x1                                                                                                     | SS_HRB-010",25.3,"Pound"]
["Select Source","SS_HRB-011","Pendulum® 3.3 EC","Alternative for: Original Formulation","2x2.5","Pendulum® 3.3 EC | Alternative for: Original Formulation | 2x2.5                                                                                                     | SS_HRB-011",38.950000000000003,"Gallon"]
["Select Source","SS_HRB-012","Pendulum® Aquacap™","Original Formulation","2x2.5","Pendulum® Aquacap™ | Original Formulation | 2x2.5                                                                                                     | SS_HRB-012",50.65,"Gallon"]
["Select Source","SS_HRB-013","Prodiamine 4SC Select™","Alternative for: Barricade 4L ®","2x2.5","Prodiamine 4SC Select™ | Alternative for: Barricade 4L ® | 2x2.5                                                                                                     | SS_HRB-013",76.55,"Gallon"]
["Select Source","SS_HRB-014","Prodiamine 65 WDG","Alternative for: Barricade 65WDG®","6x5","Prodiamine 65 WDG | Alternative for: Barricade 65WDG® | 6x5                                                                                                     | SS_HRB-014",11.35,"Pound"]
["Select Source","SS_HRB-015","Princep® 4L","Original Formulation","2x2.5","Princep® 4L | Original Formulation | 2x2.5                                                                                                     | SS_HRB-015",23.4,"Gallon"]
["Select Source","SS_HRB-016","Quinclorac 1.5L Select ™","Alternative for: Drive XLR8®","0.5 gal","Quinclorac 1.5L Select ™ | Alternative for: Drive XLR8® | 0.5 gal                                                                                                     | SS_HRB-016",58.45,"Jug"]
["Select Source","SS_HRB-017","Quinclorac Select 75DF™","Alternative for: Drive® 75DF","1 #","Quinclorac Select 75DF™ | Alternative for: Drive® 75DF | 1 #                                                                                                     | SS_HRB-017",42.85,"Pound"]
["Select Source","SS_HRB-018","Rimsulfuron 25DF","Alternative for: TranXit®","6x5 oz.","Rimsulfuron 25DF | Alternative for: TranXit® | 6x5 oz.                                                                                                     | SS_HRB-018",74,"Ounce"]
["Select Source","SS_HRB-019","Rometsol","Alternative for: Manor® 60DF","8 oz","Rometsol | Alternative for: Manor® 60DF | 8 oz                                                                                                     | SS_HRB-019",6.5,"Ounce"]
["Select Source","SS_HRB-020","Sedgehammer","Original Formulation","1.3 oz","Sedgehammer | Original Formulation | 1.3 oz                                                                                                     | SS_HRB-020",88.95,"Bottle"]
["Select Source","SS_HRB-021","Sulfentrazone 4L Select ™","Alternative for: Dismiss","0.5 gal","Sulfentrazone 4L Select ™ | Alternative for: Dismiss | 0.5 gal                                                                                                     | SS_HRB-021",292.2,"Jug"]
["Select Source","SS_HRB-022","Surflan ®","Original Formulation","2x2.5","Surflan ® | Original Formulation | 2x2.5                                                                                                     | SS_HRB-022",54.545454545454547,"Gallon"]
["Select Source","SS_HRB-023","T/I 2.5G","Alternative for: Snapshot®","50#","T/I 2.5G | Alternative for: Snapshot® | 50#                                                                                                     | SS_HRB-023",80.5,"Bag"]
["Select Source","SS_HRB-024","Triad Select™","Contains 2,4-D Amine, MCPA, and Dicamba","2x2.5","Triad Select™ | Contains 2,4-D Amine, MCPA, and Dicamba | 2x2.5                                                                                                     | SS_HRB-024",26.6,"Gallon"]
["Select Source","SS_INS-001","Acephate 97","Alternative for: Orthene®","40 #","Acephate 97 | Alternative for: Orthene® | 40 #                                                                                                     | SS_INS-001",7.15,"Pound"]
["Select Source","SS_INS-002","Bifen G/N 7.9F Select™","Alternative for: Talstar®","1 Gallon","Bifen G/N 7.9F Select™ | Alternative for: Talstar® | 1 Gallon                                                                                                     | SS_INS-002",33.950000000000003,"Gallon"]
["Select Source","SS_INS-003","Chlorpyrifos 4E","Alternative for: Dursban® 4E","2x2.5","Chlorpyrifos 4E | Alternative for: Dursban® 4E | 2x2.5                                                                                                     | SS_INS-003",58.45,"Gallon"]
["Select Source","SS_INS-004","Fipronil 0.0143G","Alternative for: Top Choice®","30#","Fipronil 0.0143G | Alternative for: Top Choice® | 30#                                                                                                     | SS_INS-004",58.45,"Bag"]
["Select Source","SS_INS-005","Imidacloprid 0.5G","Alternative for: Merit 0.5G®","30#","Imidacloprid 0.5G | Alternative for: Merit 0.5G® | 30#                                                                                                     | SS_INS-005",27.3,"Bag"]
["Select Source","SS_INS-006","Imidacloprid 2F Select T/I™","Alternative for: Merit 2F, Premise","1 Gallon","Imidacloprid 2F Select T/I™ | Alternative for: Merit 2F, Premise | 1 Gallon                                                                                                     | SS_INS-006",46.75,"Gallon"]
["Select Source","SS_INS-007","Imidacloprid 75WSB Select™","Alternative for: Merit 75 WSP","88x1.6 oz","Imidacloprid 75WSB Select™ | Alternative for: Merit 75 WSP | 88x1.6 oz                                                                                                     | SS_INS-007",486.7,"Drum"]
["Select Source","SS_INS-008","Lambda Select ™","Alternative for: Scimitar®","1 Gallon","Lambda Select ™ | Alternative for: Scimitar® | 1 Gallon                                                                                                     | SS_INS-008",71.45,"Gallon"]
["Select Source","SS_INS-009","Sevin® 4SL","Original Formulation","2x2.5","Sevin® 4SL | Original Formulation | 2x2.5                                                                                                     | SS_INS-009",48.701298701298697,"Gallon"]
["Select Source","SS_INS-010","Wasp Freeze®","Original Formulation","17.5 oz","Wasp Freeze® | Original Formulation | 17.5 oz                                                                                                     | SS_INS-010",10.15,"Each"]
["Select Source","SS_MNT-001","Defoamer Select™","Defoamer","12x1","Defoamer Select™ | Defoamer | 12x1                                                                                                     | SS_MNT-001",12.698412698412698,"Quart"]
["Select Source","SS_MNT-002","Foam Marker Select™","Foam Marker","12x1","Foam Marker Select™ | Foam Marker | 12x1                                                                                                     | SS_MNT-002",15.873015873015873,"Quart"]
["Select Source","SS_MNT-003","Masking Agent Select™","Masking Agent (Winter Green)","12x1","Masking Agent Select™ | Masking Agent (Winter Green) | 12x1                                                                                                     | SS_MNT-003",43.650793650793652,"Quart"]
["Select Source","SS_MNT-004","Tank Cleaner Select™","Tank Cleaner","12x1","Tank Cleaner Select™ | Tank Cleaner | 12x1                                                                                                     | SS_MNT-004",12.301587301587302,"Quart"]
["Select Source","SS_PGR-001","Ethephon 2SL"," Alternative for: Proxy®","2x2.5","Ethephon 2SL |  Alternative for: Proxy® | 2x2.5                                                                                                     | SS_PGR-001",35.064935064935064,"Gallon"]
["Select Source","SS_PGR-002","Tide Paclo 2SC","Alternative for:  Trimmit®","1 Gallon","Tide Paclo 2SC | Alternative for:  Trimmit® | 1 Gallon                                                                                                     | SS_PGR-002",187.012987012987,"Gallon"]
["Select Source","SS_PGR-003","Trin-Pac Select™","Alternative for:  Primo Maxx®","1 Gallon","Trin-Pac Select™ | Alternative for:  Primo Maxx® | 1 Gallon                                                                                                     | SS_PGR-003",135.13513513513513,"Gallon"]
["Select Source","SS_PGR-004","Trin-Pac Select™","Alternative for:  Primo Maxx®","2x2.5","Trin-Pac Select™ | Alternative for:  Primo Maxx® | 2x2.5                                                                                                     | SS_PGR-004",129.87012987012986,"Gallon"]
["Select Source","SS_SPI-001","Turf Marker Blue Select™","Blue Turf Marker","1 Gallon","Turf Marker Blue Select™ | Blue Turf Marker | 1 Gallon                                                                                                     | SS_SPI-001",34.920634920634917,"Gallon"]
["Select Source","SS_SPI-002","Turf Marker Blue Select WSB™","Blue SPI - Water Soluble Bag","40x2 oz.","Turf Marker Blue Select WSB™ | Blue SPI - Water Soluble Bag | 40x2 oz.                                                                                                     | SS_SPI-002",166.66666666666666,"Case"]
["Select Source","SS_SPI-003","Turf Marker Green Select ™","Green Turf Marker","1 Gallon","Turf Marker Green Select ™ | Green Turf Marker | 1 Gallon                                                                                                     | SS_SPI-003",39.682539682539684,"Gallon"]
["Select Source","SS_SPI-004","Tee Time Select™","Green Pigment","1 Gallon","Tee Time Select™ | Green Pigment | 1 Gallon                                                                                                     | SS_SPI-004",119.04761904761905,"Gallon"]

{"sheet":"Aqua Aid","index":2,"n_rows":35,"n_cols":7,"rows_kept":35,"cut":false,"hidden":true,"merged":[]}
[]
[]
[]
[]
[]
[]
[]
["Product ID","Item","Package Size","Description","Price / UOM","UOM","Total"]
["AA_WAP-001","Aqua-Aid Liquid","2x2.5 Gallon","Aqua-Aid Wetting Agent (Penetrate)",157,"Case"]
[{"$f":"IF(B10=\"\",\"\",LEFT(A9,7)&TEXT(RIGHT(A9,3)+1,\"000\"))","v":"AA_WAP-002"},"Aqua-Aid Pellets","24, 8oz Pellets","Aqua-Aid Wetting Agent (Penetrate)",225,"Box"]
["AA_WAP-003","Aquifer Liquid","2x2.5 Gallon","Soil Surfactant  (Hydrate)",343,"Case"]
["AA_WAP-004","OARS PS Liquid","2x2.5 Gallon","Penetrating Branched Soil Surfactant (Corrective)",462,"Case"]
["AA_WAP-005","OARS HS Liquid","2x2.5 Gallon","Hydrating Branched Soil Surfactant (Corrective)",471,"Case"]
["AA_WAP-006","AQM Pellets","12, 8oz Pellets","Wetting Agent w/Kelp Extract (Repair and Root)",274,"Box"]
[""]
[""]
[""]
[""]
[""]
[""]
[""]
[""]
[""]
[""]
[""]
[""]
[""]
[""]
[""]
[""]
[""]
[""]
[""]
[""]
[""]

{"sheet":"COMAND","index":3,"n_rows":35,"n_cols":7,"rows_kept":35,"cut":false,"hidden":true,"merged":[]}
[]
[]
[]
[]
[]
[]
[]
["Product ID","Item","Package Size","Description","Price / UOM","UOM","Total"]
["LS_COM-001","7030DIVOT-GAS","2000 Lb Bag","70/30 COMAND Green Divot Mix",190,"Tote"]
[{"$f":"IF(B10=\"\",\"\",LEFT(A9,7)&TEXT(RIGHT(A9,3)+1,\"000\"))","v":"LS_COM-002"},"COMAND 1/8 100-LIF","(40) X 45 Lb Bag","40 X COMAND 1/8 45 Lb Bags",560,"Pallet"]
["LS_COM-003","COMAND 1/8 100 SACK-LIF","1000 Lb Bag","COMAND 1/8 1000 Lb Sack",330,"Tote"]
[""]
[""]
[""]
[""]
[""]
[""]
[""]
[""]
[""]
[""]
[""]
[""]
[""]
[""]
[""]
[""]
[""]
[""]
[""]
[""]
[""]
[""]
[""]
[""]

{"sheet":"Bio Mas","index":4,"n_rows":35,"n_cols":7,"rows_kept":35,"cut":false,"hidden":true,"merged":[]}
[]
[]
[]
[]
[]
[]
[]
["Product ID","Item","Package Size","Description","Price / UOM","UOM","Total"]
["GV_BIO-001","BioMAS G","25 lb Pail","Bio-Más G",800,"Pail"]
[{"$f":"IF(B10=\"\",\"\",LEFT(A9,7)&TEXT(RIGHT(A9,3)+1,\"000\"))","v":"GV_BIO-002"},"BioMAS-G","25 lb Pail","Bio-Más G",800,"Pail"]
[""]
[""]
[""]
[""]
[""]
[""]
[""]
[""]
[""]
[""]
[""]
[""]
[""]
[""]
[""]
[""]
[""]
[""]
[""]
[""]
[""]
[""]
[""]
[""]
[""]

{"sheet":"GV Water Soluble","index":5,"n_rows":35,"n_cols":7,"rows_kept":35,"cut":false,"hidden":true,"merged":[]}
[]
[]
[]
[]
[]
[]
[]
["Product ID","Item","Package Size","Description","Price / UOM","UOM","Total"]
["GV_WSF-001","GV12636-PFI","25 Lb. Bag","12-6-36 Water Soluble Fertilizer",29,"Bag"]
[{"$f":"IF(B10=\"\",\"\",LEFT(A9,7)&TEXT(RIGHT(A9,3)+1,\"000\"))","v":"GV_WSF-002"},"GV202020-PFI","25 Lb. Bag","20-20-20 Water Soluble Fertilizer w/ Minors",28,"Bag"]
["GV_WSF-003","GV21331-PFI","25 Lb. Bag","21-3-31 Water Soluble Fertilizer",28.5,"Bag"]
[""]
[""]
[""]
[""]
[""]
[""]
[""]
[""]
[""]
[""]
[""]
[""]
[""]
[""]
[""]
[""]
[""]
[""]
[""]
[""]
[""]
[""]
[""]
[""]

{"sheet":"Brandt","index":6,"n_rows":93,"n_cols":7,"rows_kept":93,"cut":false,"hidden":true,"merged":[]}
[]
[]
[]
[]
[]
[]
[]
["Product ID","Item","Package Size","Description","Price / UOM","UOM","Total"]
["BT_INV-001","Summer Success Program ","12 cases","Nutritional Program for Greens",1250,"Kit"]
[{"$f":"IF(B10=\"\",\"\",LEFT(A9,7)&TEXT(RIGHT(A9,3)+1,\"000\"))","v":"BT_INV-002"},"Winter Success Program","13 cases","Nutritional Program for Greens",1250,"Kit"]
["BT_INV-003","Nematode Kit","15 cases","8 month control for 3 acres",2500,"Kit"]
["BT_INV-004","Brandt Noculate® Liquid","2 x 2.5 gal","Microbial Inoculate plus Humic Acid and Kelp",220,"case"]
["BT_INV-005","Brandt Uptake 12","2 x 2.5 gal","12% Humic substances (Leonardite)",90,"case"]
["BT_INV-006","Brandt Uptake Advanced","2 x 2.5 gal","8% Humic Acid Devired from Leonardite Ore",129,"case"]
["BT_INV-007","Brandt Uptake Starter","2 x 2.5 gal","4% N, 1% P, 4% S",122.5,"case"]
["BT_INV-008","Leonardite Plus Fine","44 lb bag","80% Humic Acid",1.1000000000000001,"lb"]
["BT_INV-009","Leonardite Plus Granular (OMRI LISTED)","50 lb bag","65% Humic Acid",1,"lb"]
["BT_INV-010","Brandt Seaweed Max","2 x 2.5 gal","Seaweed Extra With Humic Acid",270,"case"]
["BT_INV-011","Brandt Humi-Cal","2 x 2.5 gal","1.5% Ca, 6% Humic Acid, 2% Salicylic Acid",110,"case"]
["BT_INV-012","Brandt In-Cyte","2 x 2.5 gal","3-12-0 plus Humic Acid, Seaweed Extract, Wetting Agent",100,"case"]
["BT_INV-013","Brandt Parco Root XL","2 x 2.5 gal","1.5% Mg, 4% S, 0.16% B, 3.5% Fe, 0.75% Mn, 0.003% Mo, 0.75% Zn",116,"case"]
["BT_INV-014","Brandt Foli-Boost","2 x 2.5 gal","12-4-6  plus 1% S",91,"case"]
["BT_INV-015","Brandt Plant Start 8-27-2","2 x 2.5 gal","Starter Fertilizer, Seaweed Extract",170.5,"case"]
["BT_INV-016","Brandt 30-K","2 x 2.5 gal","30% K2O",144.5,"case"]
["BT_INV-017","Brandt Converge 18-3-6","2 x 2.5 gal","18% N, 3% P2O5, 6% K2O, 0.05% Cu, 0.1% Fe, 0.05% Mn, 0.05% Zn (50% SRN)",100,"case"]
["BT_INV-018","Brandt Converge CRN","2 x 2.5 gal","30% N (70% SRN)",92.5,"case"]
["BT_INV-019","Brandt Flash Dance","2 x 2.5 gal","1% N, 5% Fe",70,"case"]
["BT_INV-020","Brandt Supreme Green","2 x 2.5 gal","12% N, 0.25% Mg, 5% S, 6% Fe, 2% Mn",102,"case"]
["BT_INV-021","Manni Plex Foli-Cal","2x2.5 Gallon","5% N 10% Ca",106.7,"Case"]
["BT_INV-022","Manni-Plex Cal Mg","2x2.5 Gallon","7% N, 5.3% Ca, 2.6% Mg",95.6,"Case"]
["BT_INV-023","Manni-Plex Cal Zn","2x2.5 Gallon","6% N, 6% Ca, 35 Zn",109.5,"Case"]
["BT_INV-024","Manni-Plex Eagle","2x2.5 Gallon","7% N, 14% K2O, 0.5% Mg, 0.5% Fe, 0.25% Mn",150,"Case"]
["BT_INV-025","Manni-Plex Fe","2x2.5 Gallon","5% N, 5% Fe",90,"Case"]
["BT_INV-026","Manni-Plex Grow","2x2.5 Gallon","12% N, 6% K2O, 0.25% Mg, 0.12% Cu, 1% Fe, 0.25% Mn, 0.25% Zn",140,"Case"]
["BT_INV-027","Manni-Plex K","2x2.5 Gallon","20% K20",119.1,"Case"]
["BT_INV-028","Manni-Plex Mg","2x2.5 Gallon","5% N, 4% Mg",93.6,"Case"]
["BT_INV-029","Manni-Plex Mn","2x2.5 Gallon","7% N, 5% Mn",99.3,"Case"]
["BT_INV-030","Manni-Plex For Ornamentals","2x2.5 Gallon","5% N, 2.5% B, 1% Fe, 2.5% Mn, 2% Zn",107.1,"Case"]
["BT_INV-031","Manni-Plex Root Builder","2x2.5 Gallon","3% N, 0.5% Mg, 0.2% B, 0.05% Cu, 0.9% Mn, 4.7% Zn",140,"Case"]
["BT_INV-032","Manni-Plex Total Turf","2x2.5 Gallon","5% N, 1.2% Mg, 2.85% Fe, 0.45% Mn, 0.65% Zn",150,"Case"]
["BT_INV-033","Manni-Plex Traffic","2x2.5 Gallon","6% K2O plus 5% Silicon",146,"Case"]
["BT_INV-034","Manni-Plex Ultra Turf","2x2.5 Gallon","4% N, 2% K2O, 0.5% Mg, 0.25% B, 0.5% Cu, 2% Fe, 0.5% Mn, 0.25% Mo",140,"Case"]
["BT_INV-035","Manni-Plex Zn","2x2.5 Gallon","3% N, 7% Zn",119.4,"Case"]
["BT_INV-036","FUNGI-Phite","2.5X2","EPA registered fungicide",32.4,"gal"]
["BT_INV-037","Gro-Phite","2.5X2","Phosphite fertilizer",30,"gal"]
["BT_INV-038","Gro-Phite","265 gal","Phosphite fertilizer",26,"gal"]
["BT_INV-039","Nutri-Grow Magnum with N-Riched Technology","2X2.5","Phosphite fertilizer stablizer formulation",53,"gal"]
["BT_INV-040","Nutri-Grow Calciphite with N-Riched Technology","2X2.5","Calcium Phosphite fertilizer",43.75,"gal"]
["BT_INV-041","Nutri-Grow Sulphone with N-Riched Technology","5lb","MSM sulpher phosphite fertilizer",11,"lb"]
["BT_INV-042","Safe Zone","2X2.5","Sodium flusher",28.5,"gal"]
["BT_INV-043","Reaction MKS","2X2.5","Liquid Sul-Po-Mag",13,"gal"]
["BT_INV-044","Reaction MKS","265 gal tote","Liquid Sul-Po-Mag",10,"gal"]
["BT_INV-045","Reaction P","2X2.5","Long term availablity phosphorous source",11.5,"gal"]
["BT_INV-046","Reaction K","2X2.5","Long lasting availabilty potassium source ",9.4,"gal"]
["BT_INV-047","Noculate 8-2-8","50lb bag","Ca0.10%Mg0.50%S5.00%Fe1.00%Mn0.50% Ammonium Sulfate, Methylene Urea",31,"Bag"]
["BT_INV-048","Nocu tain 13-4-13","50lb bag","Fe1.00%Mg1.00%Mn0.50%S4.00% Urea, Methylene Urea",35,"Bag"]
["BT_INV-049","Noculate 8-3-17","50 lb bag","Ca0.80%Fe4.00%Mg1%   Mn3.10%S6% Urea, Methylene Urea",39,"Bag"]
["BT_INV-050","Noculate 11-2-11","50lb bag","Ca0.10%Fe0.50%Mg2.00%S12% Ammonium Sulfate",31,"Bag"]
["BT_INV-051","Parco 13-2-13 Kym Special","50lb bag","Ca7.10%Fe1.50%Mg3.2%Mn1.50%s6% Ammonium Sulfate, Methylene Urea",39,"Bag"]
["BT_INV-052","BRANDT en-TREE EB","50/case ","Emamectin Benzoate",26,"Each"]
["BT_INV-053","BRANDT en-TREE EB","24/case","Emamectin Benzoate",26,"Each"]
["BT_INV-054","BRANDT en-TREE EB","12/case","Emamectin Benzoate",26,"Each"]
["BT_INV-055","BRANDT en-TREE 0-2.4-2.6","50/case   ","Phosphites",11.08,"Each"]
["BT_INV-056","BRANDT en-TREE microPack","50/case ","Nutrients",7.02,"Each"]
["BT_INV-057","Agra Sol No. 101","15 lb bag","24.7% Cu, 4% Zn, 4% Mn",93,"bag"]
["BT_INV-058","Agra Sol Cut Foliage Mix","10 lb bag","4% Mg, 0.5% B, 2% Fe, 2% Mn, 0.5% Zn",20.5,"bag"]
["BT_INV-059","Megalex","2X2.5","Megalex",255,"case"]
["BT_INV-060","Upplause Plus","2X2.5","Upplause Plus",210,"case"]
["BT_INV-061","Advantage MicroPlus","2X2.5","Advantage MicroPlus",232.5,"case"]
["BT_INV-062","Neo-Tec® SO","2 x 2.5 gal","Parasitic Nematode Control",770,"Case"]
["BT_INV-063","Neo-Tec® GSO","50 lb bag","Granular Parasitic Nematode Control",90,"Bag"]
["BT_INV-064","Brandt Nema-Q® (OMRI LISTED)","5 gal pail","8.6% Saponins of Quillaja saponaria",582.5,"Pail"]
["BT_INV-065","Consan Turf","2 x 2.5 gal","Fungicide and Algaecide",166,"Case"]
[{"$f":"IF(B74=\"\",\"\",LEFT(A73,7)&TEXT(RIGHT(A73,3)+1,\"000\"))","v":"BT_INV-066"},"Brandt Big Foot® ","2 x 2.5 gal","Blue Spray Indicator Dye",170.5,"case"]
["BT_INV-067","Brandt Big Foot® ","4 x 1 gal","Blue Spray Indicator Dye",136.5,"case"]
["BT_INV-068","Brandt Big Foot® SS","12 x 1 quart","Super Strength Blue Indicator Dye",241,"case"]
["BT_INV-069","Brandt Big Foot® WSB","1 x 50 bags","Blue Spray Indicator in Water Soluble Bag",220.5,"pail"]
["BT_INV-070","Big Foot® Red SS","12 x 1 quart","Super Strength Red; Great for Herbicides",281,"case"]
["BT_INV-071","Brandt Mark-It-Red","12 x 1 quart","Super Strenght Red; Great for Herbicides",301,"case"]
["BT_INV-072","Brandt Green Toes SS","12 x 1 quart","Super Strength Green Indicator Dye",281,"case"]
["BT_INV-073","Brandt Green Toes SS","24 x 8 oz","Super Strength Green Indicator Dye",191,"case"]
["BT_INV-074","Brandt Mean and Green ","2 x 2.5 gal","Extra Dark Grass and Divot Paint",420.5,"case"]
["BT_INV-075","Brandt Foamy","4 x 1 gal","Foam Indicator Marker",184.5,"case"]
["BT_INV-076","Brandt Big Foot® Tablets","6 x 50 tablets","Blue Spray Indicator Tablets",120.5,"case"]
["BT_INV-077","Blue Lagoon® SS","12 x 1 quart","Blue Super Strength Pond Colorant",241,"case"]
["BT_INV-078","Blue Lagoon®","4 x 1 gal","Blue Pond Colorant",150.5,"case"]
["BT_INV-079","Blue Lagoon® WSB","1 x 50 bags","Blue Pond Colorant in a Water Soluble Bag",220.5,"pail"]
["BT_INV-080","Brandt Blue Shadow","12 x 1 quart","Blue/Green Super Strength Pond Colorant",260.5,"case"]
["BT_INV-081","Brandt Midnight Blue SS","12 x 1 quart","Blue/Black Super Strength Pond Colorant",240,"case"]
["BT_INV-082","Bradnt Loch Ness® SS","12 x 1 quart","Black Super Strength Pond Colorant",341,"case"]
["BT_INV-083","Brandt AquaSurf™","4x1 gal","90% Aquatic Adjuvant Eco-Friendly Non Ionic ",192,"Case"]
["BT_INV-084","Brandt Topcoat","2 x 2.5 gal","100% Active Soil Wetting Agent",400,"Case"]
["BT_INV-085","Brandt Defoamer","12 x 1 quart","Spray Tank Defoamer",110,"case"]

{"sheet":"Grigg Brothers","index":7,"n_rows":40,"n_cols":8,"rows_kept":40,"cut":false,"hidden":true,"merged":[]}
[]
[]
[]
[]
[]
[]
[]
["Product ID","Item","Package Size","Description","Price / UOM","UOM","Total"]
["GB_PFL-001","Sili Kal B™","2x2.5 Gallon","Sili Kal B™ 8-0-4   ",270.3,"Case",null,"Proven Foliar Liquids"]
[{"$f":"IF(B10=\"\",\"\",LEFT(A9,7)&TEXT(RIGHT(A9,3)+1,\"000\"))","v":"GB_PFL-002"},"A-O-K®","2x2.5 Gallon","A-O-K® 1-0-25",211.25,"Case",null,"Proven Foliar Liquids"]
[{"$f":"IF(B11=\"\",\"\",LEFT(A10,7)&TEXT(RIGHT(A10,3)+1,\"000\"))","v":"GB_PFL-003"},"Microburst™","2x2.5 Gallon","Microburst™ 0-0-1",247.5,"Case",null,"Proven Foliar Liquids"]
["GB_PFL-004","Gary's Green Ultra","2x2.5 Gallon","Gary's Green Ultra 13-2-3 +Fe",220.6,"Case",null,"Proven Foliar Liquids"]
["GB_PFL-005","Gary's Green®","2x2.5 Gallon","Gary's Green® 18-3-4 +Fe ",201.45,"Case",null,"Proven Foliar Liquids"]
["GB_PFL-006","Suprema®","2x2.5 Gallon","Suprema® 12-0-12",191.25,"Case",null,"Proven Foliar Liquids"]
["GB_PFL-007","Ultraplex®","2x2.5 Gallon","Ultraplex® 4-0-3 ",262.64999999999998,"Case",null,"Proven Foliar Liquids"]
["GB_PFL-008","P-K Plus®","2x2.5 Gallon","P-K Plus® 3-7-18 ",283.05,"Case",null,"Proven Foliar Liquids"]
["GB_PFL-009","Tuff Turf®","2x2.5 Gallon","Tuff Turf® 1-0-14 ",288.14999999999998,"Case",null,"Proven Foliar Liquids"]
["GB_PFL-010","Low N Plus™","2x2.5 Gallon","Low N Plus™ 1-6-12",191.25,"Case",null,"Proven Foliar Liquids"]
["GB_PFL-011","Kelplex™ ","2x2.5 Gallon","Kelplex™ 1-2-2    ",341.7,"Case",null,"Proven Foliar Liquids"]
["GB_PFL-012","Iron Combo Chelate 4%®","2x2.5 Gallon","Iron Combo Chelate 4%®",260,"Case",null,"Proven Foliar Liquids"]
["GB_PFL-013","Elicitor®","2x2.5 Gallon","Elicitor®",159,"Case",null,"Proven Foliar Liquids"]
[""]
["GB_SPL-001","Rhizonify™","2x2.5 Gallon","Rhizonify™",165,"Case",null,"Soil Specialty Liquids"]
[{"$f":"IF(B24=\"\",\"\",LEFT(A23,7)&TEXT(RIGHT(A23,3)+1,\"000\"))","v":"GB_SPL-002"},"Displace™","2x2.5 Gallon","Displace™",218.75,"Case",null,"Soil Specialty Liquids"]
[{"$f":"IF(B25=\"\",\"\",LEFT(A24,7)&TEXT(RIGHT(A24,3)+1,\"000\"))","v":"GB_SPL-003"},"Carboplex®","2x2.5 Gallon","Carboplex® 6-4-4",136.25,"Case",null,"Soil Specialty Liquids"]
[{"$f":"IF(B26=\"\",\"\",LEFT(A25,7)&TEXT(RIGHT(A25,3)+1,\"000\"))","v":"GB_SPL-004"},"Bio Blend™","2x2.5 Gallon","Bio Blend™ 10-0-0",270,"Case",null,"Soil Specialty Liquids"]
[{"$f":"IF(B27=\"\",\"\",LEFT(A26,7)&TEXT(RIGHT(A26,3)+1,\"000\"))","v":""}]
["GB_SMD-001","Markit-Blue™","2x2.5 Gallon","Markit-Blue™",216.25,"Case",null,"Spray Marker Dyes"]
[{"$f":"IF(B29=\"\",\"\",LEFT(A28,7)&TEXT(RIGHT(A28,3)+1,\"000\"))","v":"GB_SMD-002"},"Markit-Green™","2x2.5 Gallon","Markit-Green™",216.25,"Case",null,"Spray Marker Dyes"]
[{"$f":"IF(B30=\"\",\"\",LEFT(A29,7)&TEXT(RIGHT(A29,3)+1,\"000\"))","v":""}]
["GB_PGT-001","GreenPIG™","2x2.5 Gallon","GreenPIG™",760,"Case",null,"Pigments"]
[{"$f":"IF(B32=\"\",\"\",LEFT(A31,7)&TEXT(RIGHT(A31,3)+1,\"000\"))","v":""}]
["GB_GSG-001","7-7-7 Seven Iron™","50 Lb Bag","7-7-7 Coarse Grade",47.5,"Bag",null,"GreenSpec™ Granulars"]
[{"$f":"IF(B34=\"\",\"\",LEFT(A33,7)&TEXT(RIGHT(A33,3)+1,\"000\"))","v":"GB_GSG-002"},"7-7-7 Seven Iron™","50 Lb Bag","7-7-7 Fine Grade",47.5,"Bag",null,"GreenSpec™ Granulars"]
["GB_GSG-003","7-0-14 ZeroPhos®","50 Lb Bag","7-0-14 Coarse Grade",47.5,"Bag",null,"GreenSpec™ Granulars"]
["GB_GSG-004","7-0-14 ZeroPhos®","50 Lb Bag","7-0-14 Fine Grade",47.5,"Bag",null,"GreenSpec™ Granulars"]
["GB_GSG-005","10-2-4 All Natural Organic","50 Lb Bag","10-2-4 Fine Grade",49.5,"Bag",null,"GreenSpec™ Granulars"]
["GB_GSG-006","CK Balance™","50 Lb Bag","Fine Grade",46.5,"Bag",null,"GreenSpec™ Granulars"]
["GB_GSG-007","SK Balance™","50 Lb Bag","Fine Grade",47.5,"Bag",null,"GreenSpec™ Granulars"]
[""]

{"sheet":"Emerald Isle","index":8,"n_rows":28,"n_cols":7,"rows_kept":28,"cut":false,"hidden":true,"merged":[]}
[]
[]
[]
[]
[]
[]
[]
["Product ID","Item","Package Size","Description","Price/UOM","UOM","Total"]
["EI_CPR-001",3118800,"2x2.5 Gallon","CPR  Premix Biostimulant 4-0-1",244,"Case"]
[{"$f":"IF(B10=\"\",\"\",LEFT(A9,7)&TEXT(RIGHT(A9,3)+1,\"000\"))","v":"EI_CPR-002"},3118801,"15 Gal Drum","CPR  Premix Biostimulant 4-0-1",685,"Drum"]
["EI_CPR-003",3118802,"2x2.5 Gallon","PanaSea Plus  Seaplant Extract 0-2-2",373,"Case"]
["EI_CPR-004",3118803,"15 Gal Drum","PanaSea Plus  Seaplant Extract 0-2-2",1040,"Drum"]
["EI_CPR-005",3118805,"2x2.5 Gallon","True Foliar N  19-1-6",210,"Case"]
["EI_CPR-006",3118806,"15 Gal Drum","True Foliar N  19-1-6",605,"Drum"]
["EI_CPR-007",3118807,"2x2.5 Gallon","True Foliar P  6-12-6",224,"Case"]
["EI_CPR-008",3118808,"15 Gal Drum","True Foliar P  6-12-6",626,"Drum"]
["EI_CPR-009",3118809,"2x2.5 Gallon","True Foliar NPK  10-3-16",255,"Case"]
["EI_CPR-010",3118810,"15 Gal Drum","True Foliar NPK  10-3-16",725,"Drum"]
["EI_CPR-011",3118811,"2x2.5 Gallon","True Foliar K  2-0-16",255,"Case"]
["EI_CPR-012",3118812,"15 Gal Drum","True Foliar K  2-0-16",727,"Drum"]
["EI_CPR-013",3118813,"2x2.5 Gallon","True Foliar Si  3-0-10",247,"Case"]
["EI_CPR-014",3118814,"15 Gal Drum","True Foliar Si  3-0-10",703,"Drum"]
["EI_CPR-015",3118815,"2x2.5 Gallon","True Foliar Ca  8-0-4",247,"Case"]
["EI_CPR-016",3118816,"15 Gal Drum","True Foliar Ca  8-0-4",703,"Drum"]
["EI_CPR-017",3118819,"2x2.5 Gallon","True Foliar Mg Mn  6-0-0",246,"Case"]
["EI_CPR-018",3118820,"15 Gal Drum","True Foliar Mg Mn  6-0-0",695,"Drum"]
[""]
[""]

{"sheet":"Performance Nutritution","index":9,"n_rows":62,"n_cols":8,"rows_kept":62,"cut":false,"hidden":true,"merged":[]}
[]
[]
[]
[]
[]
[]
[]
["Product ID","Item","Package Size","Description","Price/UOM","UOM","Total"]
["PN_AEA-001","Argosy RF","2x2.5 Gallon","Rain-Fast Adjuvant for Pesticide Applications",65,"Gallon",null,"Argosy™ Patented Rain-Fast, Elastic Adjuvants"]
[{"$f":"IF(B10=\"\",\"\",LEFT(A9,7)&TEXT(RIGHT(A9,3)+1,\"000\"))","v":""}]
["PN_BWC-001","Black Castings","40 Lb Bag","OMRI Listed Wormj Castings, 1-0.5-.05+1%Ca",0.81,"Lb",null,"Black Castings™ Premioum Worm Castings"]
[{"$f":"IF(B12=\"\",\"\",LEFT(A11,7)&TEXT(RIGHT(A11,3)+1,\"000\"))","v":""}]
["PN_KNM-001","KaPre® Embella","2x2.5 Gallon","Patented Soil Amendment",60,"Gallon",null,"KaPre®  Liquid Soil Amendments - Surfactants - Nutrients for Microbes"]
[{"$f":"IF(B14=\"\",\"\",LEFT(A13,7)&TEXT(RIGHT(A13,3)+1,\"000\"))","v":"PN_KNM-002"},"KaPre® ExAlt","2x2.5 Gallon","Soil Surfactant & Fertilizer Additive",98,"Gallon",null,"KaPre®  Liquid Soil Amendments - Surfactants - Nutrients for Microbes"]
["PN_KNM-003","KaPre® KelpPlus","2x2.5 Gallon","Sea Kelp plus 17 Amino Acids and Vitamin C",30,"Gallon",null,"KaPre®  Liquid Soil Amendments - Surfactants - Nutrients for Microbes"]
["PN_KNM-004","KaPre® PhoNix","2x2.5 Gallon","Patented Stress-Fighting Solution",120,"Gallon",null,"KaPre®  Liquid Soil Amendments - Surfactants - Nutrients for Microbes"]
["PN_KNM-005","KaPre® ProCreate","2x2.5 Gallon","Patented NPK Solution with micros and PO3",46,"Gallon",null,"KaPre®  Liquid Soil Amendments - Surfactants - Nutrients for Microbes"]
["PN_KNM-006","KaPre® Spectra","2x2.5 Gallon","Concentrated Fulvic Acid Solution",100,"Gallon",null,"KaPre®  Liquid Soil Amendments - Surfactants - Nutrients for Microbes"]
["PN_KNM-007","KaPre® RemeD8-WSP & KaPre® Activ8","2x2.5 Gallon","Patented Soil Amendment & Fertilizer Additive",94,"Gallon",null,"KaPre®  Liquid Soil Amendments - Surfactants - Nutrients for Microbes"]
[""]
["PN_KMS-001","Krystal Klear® B","2x2.5 Gallon","5% Boron",26,"Gallon",null,"Krystal Klear®  Patented Chelated Micronutrient Solutions"]
[{"$f":"IF(B22=\"\",\"\",LEFT(A21,7)&TEXT(RIGHT(A21,3)+1,\"000\"))","v":"PN_KMS-002"},"Krystal Klear® Ca","2x2.5 Gallon","3% Calcium",26,"Gallon",null,"Krystal Klear®  Patented Chelated Micronutrient Solutions"]
["PN_KMS-003","Krystal Klear® Cu","2x2.5 Gallon","5% Copper",44,"Gallon",null,"Krystal Klear®  Patented Chelated Micronutrient Solutions"]
["PN_KMS-004","Krystal Klear® Fe","2x2.5 Gallon","4% Iron",33,"Gallon",null,"Krystal Klear®  Patented Chelated Micronutrient Solutions"]
["PN_KMS-005","Krystal Klear® Mg","2x2.5 Gallon","3% Magnesium",40,"Gallon",null,"Krystal Klear®  Patented Chelated Micronutrient Solutions"]
["PN_KMS-006","Krystal Klear® Mn","2x2.5 Gallon","5% Manganese",36,"Gallon",null,"Krystal Klear®  Patented Chelated Micronutrient Solutions"]
["PN_KMS-007","Krystal Klear® ResQ","2x2.5 Gallon","8-0-2 with 2% Fe, 0.5% Mg, 0.5% Mn, 0.25% B, Cu, Zn",43,"Gallon",null,"Krystal Klear®  Patented Chelated Micronutrient Solutions"]
["PN_KMS-008","Krystal Klear® Turf Mix","2x2.5 Gallon","3% Fe, 1% Mn, 0.25% Cu, 0.25% B",39,"Gallon",null,"Krystal Klear®  Patented Chelated Micronutrient Solutions"]
["PN_KMS-009","Krystal Klear® Zn","2x2.5 Gallon","9% Zinc",40,"Gallon",null,"Krystal Klear®  Patented Chelated Micronutrient Solutions"]
[""]
["PN_LSF-001","LidoQuest® FeMn","25 Lb Bag","10% Fe and 3% Mn",7,"Lb.",null,"LidoQuest® EDTA Chelated Water Soluble Fertilizers"]
[{"$f":"IF(B32=\"\",\"\",LEFT(A31,7)&TEXT(RIGHT(A31,3)+1,\"000\"))","v":"PN_LSF-002"},"LidoQuest® FeMn&Mg","25 Lb Bag","4.33% Fe, 4.33% Mn and 2% Mg",7,"Lb.",null,"LidoQuest® EDTA Chelated Water Soluble Fertilizers"]
[{"$f":"IF(B33=\"\",\"\",LEFT(A32,7)&TEXT(RIGHT(A32,3)+1,\"000\"))","v":""}]
["PN_NEF-001","NutriSmart®- B  SGN 150","50 Lb Bag","0-0-0 - OMRI Listed Soil Inoculant",0.56999999999999995,"Lb.",null,"NutriSmart  Patented Eco-Fertilizer"]
[{"$f":"IF(B35=\"\",\"\",LEFT(A34,7)&TEXT(RIGHT(A34,3)+1,\"000\"))","v":"PN_NEF-002"},"NutriSmart®- B  SGN 250","51 Lb Bag","0-0-0 - OMRI Listed Soil Inoculant",0.56999999999999995,"Lb.",null,"NutriSmart  Patented Eco-Fertilizer"]
[{"$f":"IF(B36=\"\",\"\",LEFT(A35,7)&TEXT(RIGHT(A35,3)+1,\"000\"))","v":"PN_NEF-003"},"NutriSmart®- SB  SGN 250*","52 Lb Bag","0-0-0 - OMRI Listed Soil Inoculant",0.47,"Lb.",null,"NutriSmart  Patented Eco-Fertilizer"]
[{"$f":"IF(B37=\"\",\"\",LEFT(A36,7)&TEXT(RIGHT(A36,3)+1,\"000\"))","v":""}]
["PN_NPF-001","Nutrol®","8 Lb Bag","Broad Spectrum Fungicide, Fertilizer and Tank Buffer",3,"Lb",null,"Nutrol  Bio-Pesticide, Fertilizer & Tank Buffer"]
[{"$f":"IF(B39=\"\",\"\",LEFT(A38,7)&TEXT(RIGHT(A38,3)+1,\"000\"))","v":""}]
["PN_PMP-001","Pennamin® Driver - P","8x5 Lb","12-0-0 Water Soluble Amino Acids",14,"Lb",null,"Pennamin  Patented Chelated Micronutrients, Microbial Population Boosters & Chelating Powders"]
[{"$f":"IF(B41=\"\",\"\",LEFT(A40,7)&TEXT(RIGHT(A40,3)+1,\"000\"))","v":"PN_PMP-002"},"Pennamin® Fe&Mn","8x5 Lb","9-0-0+4%Fe+3%Mn - Water Soluble",13,"Lb"]
["PN_PMP-003","Pennamin® High-K","8x5 Lb","6-0-15 + 9% Ca - Water Soluble",13,"Lb"]
["PN_PMP-004","Pennamin® Mg","8x5 Lb","12-0-0 +12%Mg - Water Soluble ",13,"Lb"]
["PN_PMP-005","Pennamin® Perfect-K","8x5 Lb","8-0-9 + 5% Ca, 2% Mg, 0.1% Fe, 0.05% Mn, 0.02% B, 0.02% Zn & 0.01% Cu",14,"Lb"]
["PN_PMP-006","Pennamin® Si","8x5 Lb","10-0-0 + 4% Si",16,"Lb"]
[""]
["PN_PGR-001","Agra Rouse®","1 Gallon Bottle","0.05% Cytokinin, 0.05% Gibberellic acid & 0.09% IBA",260,"Gallon",null,"Plant Growth Regulators"]
[{"$f":"IF(B48=\"\",\"\",LEFT(A47,7)&TEXT(RIGHT(A47,3)+1,\"000\"))","v":"PN_PGR-002"},"Incite®","1 Gallon Bottle","0.09% Cytokinin, 0.05% Gibberellic acid & 0.09% IBA",260,"Gallon",null,"Plant Growth Regulators"]
[{"$f":"IF(B49=\"\",\"\",LEFT(A48,7)&TEXT(RIGHT(A48,3)+1,\"000\"))","v":""}]
["PN_PFS-001","Prudent® 42cw","2x2.5 Gallon","15-0-0 with 42% PO3  - formulated with urea phosphite",60,"Gallon",null,"Prudent® Patented Phosphite Fertilizer Solutions"]
[{"$f":"IF(B51=\"\",\"\",LEFT(A50,7)&TEXT(RIGHT(A50,3)+1,\"000\"))","v":"PN_PFS-002"},"Prudent® 44","2x2.5 Gallon","15-0-0 with 42-44% PO3  - formulated with urea phosphite",60,"Gallon",null,"Prudent® Patented Phosphite Fertilizer Solutions"]
[{"$f":"IF(B52=\"\",\"\",LEFT(A51,7)&TEXT(RIGHT(A51,3)+1,\"000\"))","v":""}]
["PN_WCE-001","VermaPlex®","2x2.5 Gallon","OMRI listed Worm Casting Extract",14,"Gallon",null,"VermaPlex® Liquid Worm Casting Extract"]
[{"$f":"IF(B54=\"\",\"\",LEFT(A53,7)&TEXT(RIGHT(A53,3)+1,\"000\"))","v":""}]
["PN_VFE-001","Vibrant® Green","2x2.5 Gallon","18-3-4 with 1% Fe, 0.1% Mn, Zn & 0.025% B with organic compounds",32,"Gallon",null,"Vibrant® Patented Foliar Fertilizers"]
[{"$f":"IF(B56=\"\",\"\",LEFT(A55,7)&TEXT(RIGHT(A55,3)+1,\"000\"))","v":"PN_VFE-002"},"Vibrant® Purple","2x2.5 Gallon","18-0-4 with 1% Fe, 0.1% Mn, Zn & 0.025% B with organic compounds",32,"Gallon",null,"Vibrant® Patented Foliar Fertilizers"]
[{"$f":"IF(B57=\"\",\"\",LEFT(A56,7)&TEXT(RIGHT(A56,3)+1,\"000\"))","v":"PN_VFE-003"},"Vibrant® Red","2x2.5 Gallon","3-6-12 with 0.1% Cu, Fe, Mn and Zn, 0.05% Si & 0.025% B plus organic compounds",32,"Gallon",null,"Vibrant® Patented Foliar Fertilizers"]
[{"$f":"IF(B58=\"\",\"\",LEFT(A57,7)&TEXT(RIGHT(A57,3)+1,\"000\"))","v":"PN_VFE-004"},"Vibrant® Silver","2x2.5 Gallon","3-0-12 with 0.1% Cu, Fe, Mn and Zn, 0.05% Si & 0.025% B plus organic compounds",32,"Gallon",null,"Vibrant® Patented Foliar Fertilizers"]
[{"$f":"IF(B59=\"\",\"\",LEFT(A58,7)&TEXT(RIGHT(A58,3)+1,\"000\"))","v":""}]
["PN_ZSC-001","Z.one® T&O 250, SGN 150","50 Lb Bags","Patented Soil Conditioner w KaPre® Soil Amendments",0.95,"Lb",null,"Z.one® Patented Zeolite Soil Conditioners"]
[{"$f":"IF(B61=\"\",\"\",LEFT(A60,7)&TEXT(RIGHT(A60,3)+1,\"000\"))","v":"PN_ZSC-002"},"Z.one® VitaSmart, SGN 150","50 Lb Bags","Patented Blend of Z.one® T&O-250 and NutriSmart®-B",1,"Lb",null,"Z.one® Patented Zeolite Soil Conditioners"]
[{"$f":"IF(B62=\"\",\"\",LEFT(A61,7)&TEXT(RIGHT(A61,3)+1,\"000\"))","v":""}]

{"sheet":"Select Source","index":10,"n_rows":77,"n_cols":8,"rows_kept":77,"cut":false,"hidden":true,"merged":[]}
[]
[]
[]
[]
[]
[]
[]
["Product ID","Item","Package Size","Description","Price / UOM","UOM","Total"]
["SS_FNG-001","Azoxy 50 WDG Select™","1 #","Alternative for: Heritage® 50 WDG",168.8,"LB",null,"Fungicides"]
[{"$f":"IF(B10=\"\",\"\",LEFT(A9,7)&TEXT(RIGHT(A9,3)+1,\"000\"))","v":"SS_FNG-002"},"AzTeb Select™","1 Gallon","Alternative for: Unique Formulation",435.05,"Gallon",null,"Fungicides"]
["SS_FNG-003","Chlorothalonil 720 Select™","2x2.5","Alternative for: Daconil Weatherstik®",47.75,"Gallon",null,"Fungicides"]
["SS_FNG-004","Chlorothalonil 82.5DF Select™","4x5","Alternative for: Daconil Ultrex®",8.75,"LB",null,"Fungicides"]
["SS_FNG-005","Echo ZN","2x2.5","Alternative for: Daconil® ZN",45.95,"Gallon",null,"Fungicides"]
["SS_FNG-006","Fosal Select™","11 #","Alternative for: Chipco Signature®",16.5,"LB",null,"Fungicides"]
["SS_FNG-007","Iprodione 2F Select™","2x2.5","Alternative for: Chipco 26019®",48,"Gallon",null,"Fungicides"]
["SS_FNG-008","Manzate Max T&O","2x2.5","Alternative for: Dithane®",43.85,"Gallon",null,"Fungicides"]
["SS_FNG-009","Manzate Pro-Stick T&O","48 #","Alternative for: Dithane®",5.8,"LB",null,"Fungicides"]
["SS_FNG-010","PPZ 41.8 Select™","1 Gallon","Alternative for: Spectator™",125,"Gallon",null,"Fungicides"]
["SS_FNG-011","Propiconazole 14.3 Select™","2x2.5","Alternative for: Banner Maxx®",62.5,"Gallon",null,"Fungicides"]
["SS_FNG-012","Proplant","1 Gallon","Alternative for: Banol®",396.10389610389609,"Gallon",null,"Fungicides"]
["SS_FNG-013","Regulate® Select","1 Gallon","Proprietary alternative to Subdue® Maxx",370.25,"Gallon",null,"Fungicides"]
["SS_FNG-014","Tebuconazole 3.6 Select™","1 Gallon","Alternative for: Torque®",62.35,"Gallon",null,"Fungicides"]
["SS_FNG-015","TM 4.5 Select™","2x2.5","Alternative for: Cleary's 3336®",65.8,"Gallon",null,"Fungicides"]
["SS_HRB-001","Diquat 2L","2x2.5","Alternative for: Reward",58.9,"Gallon",null,"Herbicides"]
[{"$f":"IF(B25=\"\",\"\",LEFT(A24,7)&TEXT(RIGHT(A24,3)+1,\"000\"))","v":"SS_HRB-002"},"Dithiopyr 2L","1 Gallon","Alternative for: Dimension® 2EW",205.2,"Gallon",null,"Herbicides"]
["SS_HRB-003","Dithiopyr 40 WSP","20 oz","Alternative for: Dimension Ultra®",57.45,"Pack",null,"Herbicides"]
["SS_HRB-004","Glystar Plus","2x2.5","Alternative for: Roundup Pro",15.6,"Gallon",null,"Herbicides"]
["SS_HRB-005","Glystar Plus","30 Gallon","Alternative for: Roundup Pro",14.95,"Gallon",null,"Herbicides"]
["SS_HRB-006","Meso 4SC Select™","1 Gallon","Alternative for: Tenacity®",649.35,"Gallon",null,"Herbicides"]
["SS_HRB-007","Metribuzin (was Tricor)","5 #","Alternative for: Sencor®",20.149999999999999,"Pound",null,"Herbicides"]
["SS_HRB-008","Oxadiazion 2G","50#","Alternative for: Ronstar®",72.5,"Bag",null,"Herbicides"]
["SS_HRB-009","Oxadiazion SC","2x2.5","Alternative for: Ronstar®",147.40259740259739,"Gallon",null,"Herbicides"]
["SS_HRB-010","Oxadiazion 50 WSP","5x2x1","Alternative for: Ronstar®",25.3,"Pound",null,"Herbicides"]
["SS_HRB-011","Pendulum® 3.3 EC","2x2.5","Alternative for: Original Formulation",38.950000000000003,"Gallon",null,"Herbicides"]
["SS_HRB-012","Pendulum® Aquacap™","2x2.5","Original Formulation",50.65,"Gallon",null,"Herbicides"]
["SS_HRB-013","Prodiamine 4SC Select™","2x2.5","Alternative for: Barricade 4L ®",76.55,"Gallon",null,"Herbicides"]
["SS_HRB-014","Prodiamine 65 WDG","6x5","Alternative for: Barricade 65WDG®",11.35,"Pound",null,"Herbicides"]
["SS_HRB-015","Princep® 4L","2x2.5","Original Formulation",23.4,"Gallon",null,"Herbicides"]
["SS_HRB-016","Quinclorac 1.5L Select ™","0.5 gal","Alternative for: Drive XLR8®",58.45,"Jug",null,"Herbicides"]
["SS_HRB-017","Quinclorac Select 75DF™","1 #","Alternative for: Drive® 75DF",42.85,"Pound",null,"Herbicides"]
["SS_HRB-018","Rimsulfuron 25DF","6x5 oz.","Alternative for: TranXit®",74,"Ounce",null,"Herbicides"]
["SS_HRB-019","Rometsol","8 oz","Alternative for: Manor® 60DF",6.5,"Ounce",null,"Herbicides"]
["SS_HRB-020","Sedgehammer","1.3 oz","Original Formulation",88.95,"Bottle",null,"Herbicides"]
["SS_HRB-021","Sulfentrazone 4L Select ™","0.5 gal","Alternative for: Dismiss",292.2,"Jug",null,"Herbicides"]
["SS_HRB-022","Surflan ®","2x2.5","Original Formulation",54.545454545454547,"Gallon",null,"Herbicides"]
["SS_HRB-023","T/I 2.5G","50#","Alternative for: Snapshot®",80.5,"Bag",null,"Herbicides"]
["SS_HRB-024","Triad Select™","2x2.5","Contains 2,4-D Amine, MCPA, and Dicamba",26.6,"Gallon",null,"Herbicides"]
["SS_INS-001","Acephate 97","40 #","Alternative for: Orthene®",7.15,"Pound",null,"Insecticides"]
[{"$f":"IF(B49=\"\",\"\",LEFT(A48,7)&TEXT(RIGHT(A48,3)+1,\"000\"))","v":"SS_INS-002"},"Bifen G/N 7.9F Select™","1 Gallon","Alternative for: Talstar®",33.950000000000003,"Gallon",null,"Insecticides"]
["SS_INS-003","Chlorpyrifos 4E","2x2.5","Alternative for: Dursban® 4E",58.45,"Gallon",null,"Insecticides"]
["SS_INS-004","Fipronil 0.0143G","30#","Alternative for: Top Choice®",58.45,"Bag",null,"Insecticides"]
["SS_INS-005","Imidacloprid 0.5G","30#","Alternative for: Merit 0.5G®",27.3,"Bag",null,"Insecticides"]
["SS_INS-006","Imidacloprid 2F Select T/I™","1 Gallon","Alternative for: Merit 2F, Premise",46.75,"Gallon",null,"Insecticides"]
["SS_INS-007","Imidacloprid 75WSB Select™","88x1.6 oz","Alternative for: Merit 75 WSP",486.7,"Drum",null,"Insecticides"]
["SS_INS-008","Lambda Select ™","1 Gallon","Alternative for: Scimitar®",71.45,"Gallon",null,"Insecticides"]
["SS_INS-009","Sevin® 4SL","2x2.5","Original Formulation",48.701298701298697,"Gallon",null,"Insecticides"]
["SS_INS-010","Wasp Freeze®","17.5 oz","Original Formulation",10.15,"Each",null,"Insecticides"]
["SS_PGR-001","Ethephon 2SL","2x2.5"," Alternative for: Proxy®",35.064935064935064,"Gallon",null,"Plant Growth Regulators"]
[{"$f":"IF(B59=\"\",\"\",LEFT(A58,7)&TEXT(RIGHT(A58,3)+1,\"000\"))","v":"SS_PGR-002"},"Tide Paclo 2SC","1 Gallon","Alternative for:  Trimmit®",187.012987012987,"Gallon",null,"Plant Growth Regulators"]
[{"$f":"IF(B60=\"\",\"\",LEFT(A59,7)&TEXT(RIGHT(A59,3)+1,\"000\"))","v":"SS_PGR-003"},"Trin-Pac Select™","1 Gallon","Alternative for:  Primo Maxx®",135.13513513513513,"Gallon",null,"Plant Growth Regulators"]
[{"$f":"IF(B61=\"\",\"\",LEFT(A60,7)&TEXT(RIGHT(A60,3)+1,\"000\"))","v":"SS_PGR-004"},"Trin-Pac Select™","2x2.5","Alternative for:  Primo Maxx®",129.87012987012986,"Gallon",null,"Plant Growth Regulators"]
["SS_AQD-001","Aqua Blue Select™","1 Gallon","Blue Pond Dye",39.682539682539684,"Gallon",null,"Aquatic Dyes"]
[{"$f":"IF(B63=\"\",\"\",LEFT(A62,7)&TEXT(RIGHT(A62,3)+1,\"000\"))","v":"SS_AQD-002"},"Aqua Black Select™","1 Gallon","Black Pond Dye",71.428571428571431,"Gallon",null,"Aquatic Dyes"]
["SS_SPI-001","Turf Marker Blue Select™","1 Gallon","Blue Turf Marker",34.920634920634917,"Gallon",null,"Spray Pattern Indicators"]
[{"$f":"IF(B65=\"\",\"\",LEFT(A64,7)&TEXT(RIGHT(A64,3)+1,\"000\"))","v":"SS_SPI-002"},"Turf Marker Blue Select WSB™","40x2 oz.","Blue SPI - Water Soluble Bag",166.66666666666666,"Case",null,"Spray Pattern Indicators"]
[{"$f":"IF(B66=\"\",\"\",LEFT(A65,7)&TEXT(RIGHT(A65,3)+1,\"000\"))","v":"SS_SPI-003"},"Turf Marker Green Select ™","1 Gallon","Green Turf Marker",39.682539682539684,"Gallon",null,"Spray Pattern Indicators"]
[{"$f":"IF(B67=\"\",\"\",LEFT(A66,7)&TEXT(RIGHT(A66,3)+1,\"000\"))","v":"SS_SPI-004"},"Tee Time Select™","1 Gallon","Green Pigment",119.04761904761905,"Gallon",null,"Spray Pattern Indicators"]
["SS_MNT-001","Defoamer Select™","12x1","Defoamer",12.698412698412698,"Quart",null,"Maintenance"]
[{"$f":"IF(B69=\"\",\"\",LEFT(A68,7)&TEXT(RIGHT(A68,3)+1,\"000\"))","v":"SS_MNT-002"},"Foam Marker Select™","12x1","Foam Marker",15.873015873015873,"Quart",null,"Maintenance"]
[{"$f":"IF(B70=\"\",\"\",LEFT(A69,7)&TEXT(RIGHT(A69,3)+1,\"000\"))","v":"SS_MNT-003"},"Masking Agent Select™","12x1","Masking Agent (Winter Green)",43.650793650793652,"Quart",null,"Maintenance"]
[{"$f":"IF(B71=\"\",\"\",LEFT(A70,7)&TEXT(RIGHT(A70,3)+1,\"000\"))","v":"SS_MNT-004"},"Tank Cleaner Select™","12x1","Tank Cleaner",12.301587301587302,"Quart",null,"Maintenance"]
["SS_ADJ-001","80/20 Select™","2x2.5","80% Nonionic Surfactant",17.460317460317459,"Gallon",null,"Adjuvants"]
[{"$f":"IF(B73=\"\",\"\",LEFT(A72,7)&TEXT(RIGHT(A72,3)+1,\"000\"))","v":"SS_ADJ-002"},"Duo Stick Select™","2x2.5","MSO + Organosilicone Surfactant Blend",38.095238095238095,"Gallon",null,"Adjuvants"]
[{"$f":"IF(B74=\"\",\"\",LEFT(A73,7)&TEXT(RIGHT(A73,3)+1,\"000\"))","v":"SS_ADJ-003"},"MSO Select™","2x2.5","MSO",26.984126984126984,"Gallon",null,"Adjuvants"]
[{"$f":"IF(B75=\"\",\"\",LEFT(A74,7)&TEXT(RIGHT(A74,3)+1,\"000\"))","v":"SS_ADJ-004"},"PS 804 Select™","2x2.5","Similar to LI 700",27.777777777777779,"Gallon",null,"Adjuvants"]
[{"$f":"IF(B76=\"\",\"\",LEFT(A75,7)&TEXT(RIGHT(A75,3)+1,\"000\"))","v":"SS_ADJ-005"},"Triple Max Select™","2x2.5","H20 Conditioner/Acidifer/Surfactant",27.777777777777779,"Gallon",null,"Adjuvants"]
[{"$f":"IF(B77=\"\",\"\",LEFT(A76,7)&TEXT(RIGHT(A76,3)+1,\"000\"))","v":""}]